{"text_format":"3","workbook":"xlsx","n_sheets":91,"sheets":["1 апреля","Лист1","Лист2","1 апр.","Лист3","Лист4","Лист5","Лист6","Лист7","Лист8","Лист9","Лист10","Лист11","Лист12","Лист13","Лист14","Лист15","Лист16","Лист17","Лист18","Лист19","Лист20","Лист21","Лист22","Лист23","2 апр.","3 апр.","2  мая","1 июля","6 мая","2 июля","Лист24","3 июля","11 апр.","12 апр.","15 апр.","13 мая","14 мая","15 мая","16 мая","17 мая","20 мая","1 августа","2 августа","01 июля","02 июля","03 июля","01 августа","1 сентября","02 сентября","1 октября","2 октября","3 октября","1 ноября","5 ноября","7 ноября","10 ноября","11 ноября","12 ноября","13 ноября","14 ноября","01 апреля","02 апреля","03 апреля","04 апреля","10 апреля","11 апреля","Лист25","4 марта","17 ноября","18 ноября","19 ноября","20 ноября","21 ноября","24 ноября","25 ноября","26 ноября","27 ноября","28 ноября","ноябрь","9 октября","Лист27","Лист31","2 июня","30 май","23 сентября","24 сентября","25 сентября","2 сентября","1 апреля ","2 апреля"],"read":"whole","date_system":"1900"}

{"sheet":"1 апреля","index":0,"n_rows":29,"n_cols":5,"rows_kept":29,"hidden":true}
[]
[null,"Согласно контракту"]
[null,"№2024.617"]
[null,"от 23.12.2023 г."]
[]
[null,null,"10 день"]
[]
[]
[null,"Д/сад","МБДОУ \"ЦРР-д/с № 22\"Алсу\"","День","2024-03-01"]
[]
[null,10,"Блюдо","С 3 лет","до 7 лет"]
[{"$nulls":3},"грамм","ккал"]
[null,"Завтрак/иртәнге аш","Каша геркулесовая молочная с маслом сливочным","180/5",251.91]
[null,null,"Кофейный напиток с молоком","180/6",42.67]
[null,null,"Бутерброд с маслом сливочным","30/5",{"v":111.6,"d":"111.60"}]
[null,"09.00","апельсин","100",{"v":47,"d":"47.0"}]
[null,"Обед/төшке аш","Салат из свеклы с сыром","60",78.42]
[null,null,"Рассольник ленинградский с куриными фрикадельками, со сметаной","180/11/7",117.51]
[null,null,"Котлеты рыбные с маслом сливочным","70/3",144.36]
[null,null,"Макаронные изделия отварные с овощами","130",163.28]
[null,null,"Кисель","180",75.24]
[null,null,"хлеб пшеничный","25",58.75]
[null,null,"Хлеб ржаной","45",{"v":89.1,"d":"89.10"}]
[null,"Полдник/төштән соңгы аш","Молоко кипяченое","180",{"v":96.3,"d":"96.30"}]
[null,null,"Кондитерские изделия (печенье)","20",{"v":90.2,"d":"90.20"}]
[null,"Ужин/кичке аш","Капуста тушеная с мясом ","180",{"v":250.3,"d":"250.30"}]
[null,null,"Напиток из шиповника","180/6",79.38]
[null,null,"Хлеб пшеничный","30",{"v":70.5,"d":"70.50"}]
[{"$nulls":3},"152,36 руб",{"$f":"E28+E27+E26+E25+E24+E23+E22+E21+E20+E19+E18+E17+E16+E15+E14+E13","v":1766.52}]

{"sheet":"Лист1","index":1,"n_rows":0,"n_cols":0,"rows_kept":0,"hidden":true}

{"sheet":"Лист2","index":2,"n_rows":0,"n_cols":0,"rows_kept":0,"hidden":true}

{"sheet":"1 апр.","index":3,"n_rows":0,"n_cols":0,"rows_kept":0,"hidden":true}

{"sheet":"Лист3","index":4,"n_rows":0,"n_cols":0,"rows_kept":0,"hidden":true}

{"sheet":"Лист4","index":5,"n_rows":0,"n_cols":0,"rows_kept":0,"hidden":true}

{"sheet":"Лист5","index":6,"n_rows":0,"n_cols":0,"rows_kept":0,"hidden":true}

{"sheet":"Лист6","index":7,"n_rows":0,"n_cols":0,"rows_kept":0,"hidden":true}

{"sheet":"Лист7","index":8,"n_rows":0,"n_cols":0,"rows_kept":0,"hidden":true}

{"sheet":"Лист8","index":9,"n_rows":0,"n_cols":0,"rows_kept":0,"hidden":true}

{"sheet":"Лист9","index":10,"n_rows":0,"n_cols":0,"rows_kept":0,"hidden":true}

{"sheet":"Лист10","index":11,"n_rows":0,"n_cols":0,"rows_kept":0,"hidden":true}

{"sheet":"Лист11","index":12,"n_rows":0,"n_cols":0,"rows_kept":0,"hidden":true}

{"sheet":"Лист12","index":13,"n_rows":0,"n_cols":0,"rows_kept":0,"hidden":true}

{"sheet":"Лист13","index":14,"n_rows":0,"n_cols":0,"rows_kept":0,"hidden":true}

{"sheet":"Лист14","index":15,"n_rows":0,"n_cols":0,"rows_kept":0,"hidden":true}

{"sheet":"Лист15","index":16,"n_rows":0,"n_cols":0,"rows_kept":0,"hidden":true}

{"sheet":"Лист16","index":17,"n_rows":0,"n_cols":0,"rows_kept":0,"hidden":true}

{"sheet":"Лист17","index":18,"n_rows":0,"n_cols":0,"rows_kept":0,"hidden":true}

{"sheet":"Лист18","index":19,"n_rows":0,"n_cols":0,"rows_kept":0,"hidden":true}

{"sheet":"Лист19","index":20,"n_rows":0,"n_cols":0,"rows_kept":0,"hidden":true}

{"sheet":"Лист20","index":21,"n_rows":0,"n_cols":0,"rows_kept":0,"hidden":true}

{"sheet":"Лист21","index":22,"n_rows":0,"n_cols":0,"rows_kept":0,"hidden":true}

{"sheet":"Лист22","index":23,"n_rows":0,"n_cols":0,"rows_kept":0,"hidden":true}

{"sheet":"Лист23","index":24,"n_rows":0,"n_cols":0,"rows_kept":0,"hidden":true}

{"sheet":"2 апр.","index":25,"n_rows":28,"n_cols":5,"rows_kept":28,"hidden":true}
[]
[null,"Согласно контракту"]
[null,"№2024.617"]
[null,"от 23.12.2023 г."]
[]
[null,null,"2 день"]
[]
[]
[null,"Д/сад","МБДОУ \"ЦРР-д/с № 22\"Алсу\"","День","2024-04-02"]
[]
[null,10,"Блюдо","С 3 лет","до 7 лет"]
[{"$nulls":3},"грамм","ккал"]
[null,"Завтрак/иртәнге аш","Каша полбяная молочная с маслом сливочным","180/3",202.64]
[null,null,"какао с молоком","180",58.83]
[null,null,"Бутерброд с сыром, маслом сливочным","30/5/5",128.77]
[null,"09.00","Сок","180",94.4]
[null,"Обед/төшке аш","Салат из картофеля с солеными огурцами","60",66.84]
[null,null,"Борщ со свежей капустой, картофелем на курином б-не, с куриными фрикадельками, со сметаной","180/10/7",106.63]
[null,null,"Фрикадельки куриные в молочном соусе","50/25",{"v":136.3,"d":"136.30"}]
[null,null,"Макароны отварны с маслом сливочным","130/3",155.22]
[null,null,"Компот из свежих яблок","180",55.26]
[null,null,"Хлеб пшеничный","25",58.75]
[null,null,"Хлеб ржаной","45",{"v":89.1,"d":"89.10"}]
[null,"Полдник/төштән соңгы аш","Ряженка","180",{"v":91.8,"d":"91.80"}]
[null,null,"Булочка дорожная","50",{"v":165.5,"d":"165.50"}]
[null,"Ужин/кичке аш","Запеканка творожная с повидлом","120/30",{"v":418.5,"d":"418.50"}]
[null,null,"Чай с сахаром и лимоном","180/6/7",26.48]
[{"$nulls":3},"152,36 руб",{"$f":"E27+E26+E25+E24+E23+E22+E21+E20+E18+E19+E17+E16+E15+E14","v":{"v":1652.3799999999997,"d":"1652.38"}}]

{"sheet":"3 апр.","index":26,"n_rows":29,"n_cols":5,"rows_kept":29,"hidden":true}
[]
[null,"Согласно контракту"]
[null,"№2024.617"]
[null,"от 23.12.2023 г."]
[]
[null,null,"3 день"]
[]
[]
[null,"Д/сад","МБДОУ \"ЦРР-д/с № 22\"Алсу\"","День","2024-04-03"]
[]
[null,10,"Блюдо","С 3 лет","до 7 лет"]
[{"$nulls":3},"грамм","ккал"]
[null,"Завтрак/иртәнге аш","Каша кукурузная молочная с маслом сливочным","180/5",274.16]
[null,null,"Чай с сахаром и молоком","180/6",72.7]
[null,null,"Бутерброд с маслом сливочным","30/5",{"v":111.6,"d":"111.60"}]
[null,"09.00","Яблоко","100",{"v":47,"d":"47.0"}]
[null,"Обед/төшке аш","Салат из припущенной моркови с яблоками60","60",24.24]
[null,null,"Суп картофельный гороховый на мясном б-не с мясом","180/10",121.57]
[null,null,"плов из отварной говядины","200",{"v":396,"d":"396.00"}]
[null,null,"Компот из урюка","180",{"v":68.2,"d":"68.20"}]
[null,null,"Хлеб пшеничный","25",58.75]
[null,null,"Хлеб ржаной","45",{"v":89.1,"d":"89.10"}]
[null,"Полдник/төштән соңгы аш","Молоко кипяченое","180",75.24]
[null,null,"Печенье","20",{"v":89.1,"d":"89.10"}]
[null,"Ужин/кичке аш","Фрикадельки рыбный отварные","80",{"v":88,"d":"88.00"}]
[null,null,"Картофель тушеный с овощами в соусе","140",{"v":201.6,"d":"201.60"}]
[null,null,"Напиток из шиповника","180/6",79.38]
[null,null,"Хлеб пшеничный","30",{"v":70.5,"d":"70.50"}]
[{"$nulls":3},"152,36 руб",{"$f":"E28+E27+E26+E25+E24+E23+E22+E21+E20+E19+E18+E17+E16+E15+E14+E13","v":1867.14}]

{"sheet":"2  мая","index":27,"n_rows":28,"n_cols":5,"rows_kept":28,"hidden":true}
[]
[null,"Согласно контракту"]
[null,"№2024.617"]
[null,"от 23.12.2023 г."]
[]
[]
[null,null,"4 день"]
[]
[null,"Д/сад","МБДОУ \"ЦРР-д/с № 22\"Алсу\"","День","2024-05-02"]
[]
[null,10,"Блюдо","С 3 лет","до 7 лет"]
[{"$nulls":3},"грамм","ккал"]
[null,"Завтрак/иртәнге аш","Каша ячневая молочная с маслом сливочным","180/3",223.41]
[null,null,"Кофейный напиток с молоком","180/6",42.67]
[null,null,"Бутерброд с маслом сливочным, повидлом","30/5/10",{"v":119.8,"d":"119.80"}]
[null,"09.00","Сок","180",94.4]
[null,"Обед/төшке аш","Салат из зеленого горошка к/с","50",{"v":41.8,"d":"41.80"}]
[null,null,"Суп картофельный с пшенной крупой на курином б-не, с мясом птицы","180/10",76.57]
[null,null,"птица, тушенная с соусе с овощами","200",{"v":264,"d":"264.00"}]
[null,null,"Компот из изюма и яблок","180",{"v":108,"d":"108.00"}]
[null,null,"Хлеб пшеничный","225",58.75]
[null,null,"Хлеб ржаной","45",{"v":89.1,"d":"89.10"}]
[null,"Полдник/төштән соңгы аш","Кефир","180",{"v":90,"d":"90.00"}]
[null,null,"Кондитерские изделия (печенье)","20",{"v":90.2,"d":"90.20"}]
[null,"Ужин/кичке аш","Омлет натуральный с сыром","150",{"v":347.5,"d":"347.50"}]
[null,null,"Чай с сахаром","180/6",{"v":24.1,"d":"24.10"}]
[null,null,"Хлеб пшеничный","30",{"v":70.5,"d":"70.50"}]
[{"$nulls":3},"152,36 руб",{"$f":"E27+E26+E25+E24+E23+E22+E21+E20+E19+E18+E17+E16+E15+E14+E13","v":{"v":1740.8000000000002,"d":"1740.80"}}]

{"sheet":"1 июля","index":28,"n_rows":28,"n_cols":5,"rows_kept":28,"hidden":true}
[]
[null,"Согласно контракту"]
[null,"№2024.617"]
[null,"от 23.12.2023 г."]
[]
[]
[null,null,"6 день"]
[]
[null,"Д/сад","МБДОУ \"ЦРР-д/с № 22\"Алсу\""]
[]
[null,10,"Блюдо","С 3 лет","до 7 лет"]
[{"$nulls":3},"грамм","ккал"]
[null,"Завтрак/иртәнге аш","Каша пшенная молочная с маслом сливочным","180/3",208.76]
[null,null,"Чай с молоком и сахаром","180/6",75.76]
[null,null,"Бутерброд с маслом сливочным","30/5",{"v":111.6,"d":"111.60"}]
[null,"09.00","Сок","180",94.4]
[null,"Обед/төшке аш","Салат картофельный с морковуью и кукурузой к/с","60",24.24]
[null,null,"Суп из овощей на курином б-не, с мясными фрикадельками, со сметаной","180/11/7",101.49]
[null,null,"Ежики куриные в сметанно-томатномном соусе","50/25",123.03]
[null,null,"вермишель отварной","130",135.46]
[null,null,"Напиток из сухофруктов","180",{"v":87.5,"d":"87.50"}]
[null,null,"Хлеб пшеничный","25",58.75]
[null,null,"Хлеб ржаной","45",{"v":89.1,"d":"89.10"}]
[null,"Полдник/төштән соңгы аш","Катык","180",91.86]
[null,null,"Булочка с сахаром","50",170.67]
[null,"Ужин/кичке аш","Запеканка творожная с повидлом","120/30",{"v":418.5,"d":"418.50"}]
[null,null,"Напиок из шиповника","180/5",{"v":24.1,"d":"24.10"}]
[{"$nulls":3},"152,36 руб",{"$f":"E27+E26+E25+E24+E23+E22+E20+E19+E18+E17+E16+E15+E14+E13","v":1727.72}]

{"sheet":"6 мая","index":29,"n_rows":28,"n_cols":5,"rows_kept":28,"hidden":true}
[]
[null,"Согласно контракту"]
[null,"№2024.617"]
[null,"от 23.12.2023 г."]
[]
[]
[null,null,"6 день"]
[]
[null,"Д/сад","МБДОУ \"ЦРР-д/с № 22\"Алсу\"","День","2024-05-06"]
[]
[null,10,"Блюдо","С 3 лет","до 7 лет"]
[{"$nulls":3},"грамм","ккал"]
[null,"Завтрак/иртәнге аш","Каша пшенная молочная с маслом сливочным","180/3",208.76]
[null,null,"Чай с молоком и сахаром","180/6",75.76]
[null,null,"Бутерброд с маслом сливочным","30/5",{"v":111.6,"d":"111.60"}]
[null,"09.00","Сок","180",94.4]
[null,"Обед/төшке аш","Салат картофельный с морковуью и кукурузой к/с","60",24.24]
[null,null,"Суп из овощей на курином б-не, с мясными фрикадельками, со сметаной","180/11/7",101.49]
[null,null,"Ежики куриные в сметанно-томатномном соусе","50/25",123.03]
[null,null,"вермишель отварной","130",135.46]
[null,null,"Напиток из сухофруктов","180",{"v":87.5,"d":"87.50"}]
[null,null,"Хлеб пшеничный","25",58.75]
[null,null,"Хлеб ржаной","45",{"v":89.1,"d":"89.10"}]
[null,"Полдник/төштән соңгы аш","Катык","180",91.86]
[null,null,"Булочка с сахаром","50",170.67]
[null,"Ужин/кичке аш","Запеканка творожная с повидлом","120/30",{"v":418.5,"d":"418.50"}]
[null,null,"Напиок из шиповника","180/5",{"v":24.1,"d":"24.10"}]
[{"$nulls":3},"152,36 руб",{"$f":"E27+E26+E25+E24+E23+E22+E20+E19+E18+E17+E16+E15+E14+E13","v":1727.72}]

{"sheet":"2 июля","index":30,"n_rows":31,"n_cols":5,"rows_kept":31,"hidden":true}
[]
[null,"Согласно контракту"]
[null,"№2024.617"]
[null,"от 23.12.2023 г."]
[]
[null,null,"7 день"]
[]
[]
[null,"Д/сад","МБДОУ \"ЦРР-д/с № 22\"Алсу\""]
[]
[null,10,"Блюдо","С 3 лет","до 7 лет"]
[{"$nulls":3},"грамм","ккал"]
[null,"Завтрак/иртәнге аш","Каша кукурузная молочная с маслом сливочным","180/5",274.16]
[null,null,"Кофейный напиток с молоком ","180",42.67]
[null,null,"Бутерброд с маслом сливочным","30/5",{"v":111.6,"d":"111.60"}]
[null,null,"Сыр порционно","10",34.33]
[null,"09.00","Сок","180",94.4]
[null,"Обед/төшке аш","Салат из белокачанной капусты","60",53.88]
[null,null,"Суп картофельный с клецками на мясном б-не с мясом","180/10",121.66]
[null,null,"Гуляш из отварной говядины","40/40",{"v":131.2,"d":"131.20"}]
[null,null,"Пюре картофельное","140",{"v":128.1,"d":"128.10"}]
[null,null,"Компот из свежих фруктов","180",55.26]
[null,null,"Хлеб пшеничный","25",58.75]
[null,null,"Хлеб ржаной","45",{"v":89.1,"d":"89.10"}]
[null,"Полдник/төштән соңгы аш","Кефир","180",{"v":90,"d":"90.00"}]
[null,null,"мармелад","10",{"v":83,"d":"83.00"}]
[null,"Ужин/кичке аш","Биточки-рубленные из рыбы","70",{"v":124.6,"d":"124.60"}]
[null,null,"Каша гречневая рассыпчатая с овощами с маслом сливочным","130/3",181.83]
[null,null,"Чай с сахаром и лимоном","180/6/7",26.48]
[null,null,"Хлеб пшеничный","30",{"v":70.5,"d":"70.50"}]
[{"$nulls":3},"152,36 руб",{"$f":"E29+E27+E26+E25+E24+E23+E21+E20+E19+E18+E17+E15+E14+E13","v":{"v":1429.6000000000001,"d":"1429.60"}}]

{"sheet":"Лист24","index":31,"n_rows":0,"n_cols":0,"rows_kept":0,"hidden":true}

{"sheet":"3 июля","index":32,"n_rows":29,"n_cols":5,"rows_kept":29,"hidden":true}
[]
[null,"Согласно контракту"]
[null,"№2024.617"]
[null,"от 23.12.2023 г."]
[]
[]
[null,null,"8 день"]
[]
[null,"Д/сад","МБДОУ \"ЦРР-д/с № 22\"Алсу\""]
[]
[null,10,"Блюдо","С 3 лет","до 7 лет"]
[{"$nulls":3},"грамм","ккал"]
[null,"Завтрак/иртәнге аш","Каша манная молочная с маслом сливочным","180/5",{"v":199.5,"d":"199.50"}]
[null,null,"Какао с молоком ","180/6",58.83]
[null,null,"Бутерброд с маслом сливочным","30/5",{"v":111.6,"d":"111.60"}]
[null,"09.00","Сок","180",{"v":96,"d":"96.0"}]
[null,"Обед/төшке аш","Салат из моркови","60",62.34]
[null,null,"Щи со свежей капустой с картофелем на курином б-не, с куриными фрикадельками и со сметаной","180/11/7",104.59]
[null,null,"Биточки домашние","70",{"v":225.4,"d":"225.40"}]
[null,null,"Рис отварной рассыпчатый с маслом сливочным","130/20",192.01]
[null,null,"Компот из изюма","180",{"v":62.1,"d":"62.10"}]
[null,null,"Хлеб пшеничный","25",58.75]
[null,null,"Хлеб ржаной","45",{"v":89.1,"d":"89.10"}]
[null,"Полдник/төштән соңгы аш","Молоко кипяченое","180",{"v":96.3,"d":"96.30"}]
[null,null,"Кондитерские изделия (печенье)","20",{"v":90.2,"d":"90.20"}]
[null,"Ужин/кичке аш","Омлет натуральный","150",335.23]
[null,null,"Чай с сахаром","180/6",{"v":24.1,"d":"24.10"}]
[null,null,"Хлеб пшеничный","30",{"v":70.5,"d":"70.50"}]
[{"$nulls":3},"152,36 руб",{"$f":"E27+E26+E25+E24+E23+E22+E20+E19+E18+E17+E16+E15+E14+E13","v":{"v":1743.9499999999998,"d":"1743.95"}}]

{"sheet":"11 апр.","index":33,"n_rows":29,"n_cols":5,"rows_kept":29,"hidden":true}
[]
[null,"Согласно контракту"]
[null,"№2024.617"]
[null,"от 23.12.2023 г."]
[]
[null,null,"10 день"]
[]
[]
[null,"Д/сад","МБДОУ \"ЦРР-д/с № 22\"Алсу\"","День","2024-04-11"]
[]
[null,10,"Блюдо","С 3 лет","до 7 лет"]
[{"$nulls":3},"грамм","ккал"]
[null,"Завтрак/иртәнге аш","Каша геркулесовая молочная с маслом сливочным","180/5",251.91]
[null,null,"Кофейный напиток с молоком","180/6",42.67]
[null,null,"Бутерброд с маслом сливочным","30/5",{"v":111.6,"d":"111.60"}]
[null,"09.00","апельсин","100",{"v":47,"d":"47.0"}]
[null,"Обед/төшке аш","Салат из свеклы с сыром","60",78.42]
[null,null,"Рассольник ленинградский с куриными фрикадельками, со сметаной","180/11/7",117.51]
[null,null,"Котлеты рыбные с маслом сливочным","70/3",144.36]
[null,null,"Макаронные изделия отварные с овощами","130",163.28]
[null,null,"Кисель","180",75.24]
[null,null,"хлеб пшеничный","25",58.75]
[null,null,"Хлеб ржаной","45",{"v":89.1,"d":"89.10"}]
[null,"Полдник/төштән соңгы аш","Молоко кипяченое","180",{"v":96.3,"d":"96.30"}]
[null,null,"Кондитерские изделия (печенье)","20",{"v":90.2,"d":"90.20"}]
[null,"Ужин/кичке аш","Капуста тушеная с мясом ","180",{"v":250.3,"d":"250.30"}]
[null,null,"Напиток из шиповника","180/6",79.38]
[null,null,"Хлеб пшеничный","30",{"v":70.5,"d":"70.50"}]
[{"$nulls":3},"152,36 руб",{"$f":"E28+E27+E26+E25+E24+E23+E22+E21+E20+E19+E18+E17+E16+E15+E14+E13","v":1766.52}]

{"sheet":"12 апр.","index":34,"n_rows":30,"n_cols":5,"rows_kept":30,"hidden":true}
[]
[null,"Согласно контракту"]
[null,"№2024.617"]
[null,"от 23.12.2023 г."]
[]
[]
[null,null,"1 день"]
[]
[null,"Д/сад","МБДОУ \"ЦРР-д/с № 22\"Алсу\"","День","2024-04-12"]
[]
[null,10,"Блюдо","С 3 лет","до 7 лет"]
[{"$nulls":3},"грамм","ккал"]
[null,"Завтрак/иртәнге аш","Каша Дружба молочная с маслом сливочным","180/5",{"v":207.6,"d":"207.60"}]
[null,null,"Кофейный напиток с молоком","180/6",42.67]
[null,null,"Бутерброд с маслом сливочным","30/5",{"v":111.6,"d":"111.60"}]
[null,"09.00","Яблоко","100",{"v":47,"d":"47.0"}]
[null,"Обед/төшке аш","Икра кабачковая","50",{"v":34.8,"d":"34.80"}]
[null,null,"Суп вермишелевый с картофелем с мясными фрикадельками","180/15",114.56]
[null,null,"Котлеты рубленные из говядины","70",211.06]
[null,null,"Каша гречневая вязкая с маслом сливочным","130/3",145.86]
[null,null,"Напиток из сухофруктов","180",68.18]
[null,null,"Хлеб ржаной","45",{"v":89.1,"d":"89.10"}]
[null,null,"Хлеб пшеничный","25",58.75]
[null,"Полдник/төштән соңгы аш","Кефир","180",{"v":90,"d":"90.00"}]
[null,null,"Вафли","20",{"v":192,"d":"192.00"}]
[null,"Ужин/кичке аш","Котлеты рыбные ","70",124.56]
[null,null,"Пюре картофельное","140",{"v":128.1,"d":"128.10"}]
[null,null,"Чай с сахаром","180/6",{"v":24.1,"d":"24.10"}]
[null,null,"Хлеб пшеничный","30",{"v":70.5,"d":"70.50"}]
[{"$nulls":3},"152,36 руб",{"$f":"E29+E28+E27+E26+E25+E24+E23+E22+E21+E20+E19+E18+E17+E16+E15+E14+E13","v":{"v":1760.4399999999998,"d":"1760.44"}}]

{"sheet":"15 апр.","index":35,"n_rows":28,"n_cols":5,"rows_kept":28,"hidden":true}
[]
[null,"Согласно контракту"]
[null,"№2024.617"]
[null,"от 23.12.2023 г."]
[]
[null,null,"2 день"]
[]
[]
[null,"Д/сад","МБДОУ \"ЦРР-д/с № 22\"Алсу\"","День","2024-04-15"]
[]
[null,10,"Блюдо","С 3 лет","до 7 лет"]
[{"$nulls":3},"грамм","ккал"]
[null,"Завтрак/иртәнге аш","Каша полбяная молочная с маслом сливочным","180/3",202.64]
[null,null,"какао с молоком","180",58.83]
[null,null,"Бутерброд с сыром, маслом сливочным","30/5/5",128.77]
[null,"09.00","Сок","180",94.4]
[null,"Обед/төшке аш","Салат из картофеля с солеными огурцами","60",66.84]
[null,null,"Борщ со свежей капустой, картофелем на курином б-не, с куриными фрикадельками, со сметаной","180/10/7",106.63]
[null,null,"Фрикадельки куриные в молочном соусе","50/25",{"v":136.3,"d":"136.30"}]
[null,null,"Макароны отварны с маслом сливочным","130/3",155.22]
[null,null,"Компот из свежих яблок","180",55.26]
[null,null,"Хлеб пшеничный","25",58.75]
[null,null,"Хлеб ржаной","45",{"v":89.1,"d":"89.10"}]
[null,"Полдник/төштән соңгы аш","Ряженка","180",{"v":91.8,"d":"91.80"}]
[null,null,"Булочка дорожная","50",{"v":165.5,"d":"165.50"}]
[null,"Ужин/кичке аш","Запеканка творожная с повидлом","120/30",{"v":418.5,"d":"418.50"}]
[null,null,"Чай с сахаром и лимоном","180/6/7",26.48]
[{"$nulls":3},"152,36 руб",{"$f":"E27+E26+E25+E24+E23+E22+E21+E20+E18+E19+E17+E16+E15+E14","v":{"v":1652.3799999999997,"d":"1652.38"}}]

{"sheet":"13 мая","index":36,"n_rows":29,"n_cols":5,"rows_kept":29,"hidden":true}
[]
[null,"Согласно контракту"]
[null,"№2024.617"]
[null,"от 23.12.2023 г."]
[]
[null,null,"3 день"]
[]
[]
[null,"Д/сад","МБДОУ \"ЦРР-д/с № 22\"Алсу\"","День","2024-05-13"]
[]
[null,10,"Блюдо","С 3 лет","до 7 лет"]
[{"$nulls":3},"грамм","ккал"]
[null,"Завтрак/иртәнге аш","Каша кукурузная молочная с маслом сливочным","180/5",274.16]
[null,null,"Чай с сахаром и молоком","180/6",72.7]
[null,null,"Бутерброд с маслом сливочным","30/5",{"v":111.6,"d":"111.60"}]
[null,"09.00","Яблоко","100",{"v":47,"d":"47.0"}]
[null,"Обед/төшке аш","Салат из припущенной моркови с яблоками60","60",24.24]
[null,null,"Суп картофельный гороховый на мясном б-не с мясом","180/10",121.57]
[null,null,"плов из отварной говядины","200",{"v":396,"d":"396.00"}]
[null,null,"Компот из урюка","180",{"v":68.2,"d":"68.20"}]
[null,null,"Хлеб пшеничный","25",58.75]
[null,null,"Хлеб ржаной","45",{"v":89.1,"d":"89.10"}]
[null,"Полдник/төштән соңгы аш","Молоко кипяченое","180",75.24]
[null,null,"Печенье","20",{"v":89.1,"d":"89.10"}]
[null,"Ужин/кичке аш","Фрикадельки рыбный отварные","80",{"v":88,"d":"88.00"}]
[null,null,"Картофель тушеный с овощами в соусе","140",{"v":201.6,"d":"201.60"}]
[null,null,"Напиток из шиповника","180/6",79.38]
[null,null,"Хлеб пшеничный","30",{"v":70.5,"d":"70.50"}]
[{"$nulls":3},"152,36 руб",{"$f":"E28+E27+E26+E25+E24+E23+E22+E21+E20+E19+E18+E17+E16+E15+E14+E13","v":1867.14}]

{"sheet":"14 мая","index":37,"n_rows":28,"n_cols":5,"rows_kept":28,"hidden":true}
[]
[null,"Согласно контракту"]
[null,"№2024.617"]
[null,"от 23.12.2023 г."]
[]
[]
[null,null,"4 день"]
[]
[null,"Д/сад","МБДОУ \"ЦРР-д/с № 22\"Алсу\"","День","2024-05-14"]
[]
[null,10,"Блюдо","С 3 лет","до 7 лет"]
[{"$nulls":3},"грамм","ккал"]
[null,"Завтрак/иртәнге аш","Каша ячневая молочная с маслом сливочным","180/3",223.41]
[null,null,"Кофейный напиток с молоком","180/6",42.67]
[null,null,"Бутерброд с маслом сливочным, повидлом","30/5/10",{"v":119.8,"d":"119.80"}]
[null,"09.00","Сок","180",94.4]
[null,"Обед/төшке аш","Салат из зеленого горошка к/с","50",{"v":41.8,"d":"41.80"}]
[null,null,"Суп картофельный с пшенной крупой на курином б-не, с мясом птицы","180/10",76.57]
[null,null,"птица, тушенная с соусе с овощами","200",{"v":264,"d":"264.00"}]
[null,null,"Компот из изюма и яблок","180",{"v":108,"d":"108.00"}]
[null,null,"Хлеб пшеничный","225",58.75]
[null,null,"Хлеб ржаной","45",{"v":89.1,"d":"89.10"}]
[null,"Полдник/төштән соңгы аш","Кефир","180",{"v":90,"d":"90.00"}]
[null,null,"Кондитерские изделия (печенье)","20",{"v":90.2,"d":"90.20"}]
[null,"Ужин/кичке аш","Омлет натуральный с сыром","150",{"v":347.5,"d":"347.50"}]
[null,null,"Чай с сахаром","180/6",{"v":24.1,"d":"24.10"}]
[null,null,"Хлеб пшеничный","30",{"v":70.5,"d":"70.50"}]
[{"$nulls":3},"152,36 руб",{"$f":"E27+E26+E25+E24+E23+E22+E21+E20+E19+E18+E17+E16+E15+E14+E13","v":{"v":1740.8000000000002,"d":"1740.80"}}]

{"sheet":"15 мая","index":38,"n_rows":27,"n_cols":5,"rows_kept":27,"hidden":true}
[]
[null,"Согласно контракту"]
[null,"№2024.617"]
[null,"от 23.12.2023 г."]
[]
[null,null,"5 день"]
[]
[]
[null,"Д/сад","МБДОУ \"ЦРР-д/с № 22\"Алсу\"","День","2024-05-15"]
[]
[null,10,"Блюдо","С 3 лет","до 7 лет"]
[{"$nulls":3},"грамм","ккал"]
[null,"Завтрак/иртәнге аш","Суп молочный с геркулесовой крупой ","200",{"v":71.2,"d":"71.20"}]
[null,null,"какао с молоком","180",58.83]
[null,null,"Бутерброд с сыром, маслом сливочным","30/5/5",128.77]
[null,"09.00","Сок","180",94.4]
[null,"Обед/төшке аш","Салат из свеклы отварной","50",{"v":46.4,"d":"46.40"}]
[null,null,"Рассольник домашний на курином б-не, с куриными фрикадельками со сметаной","180/11/5",119.17]
[null,null,"Запеканка картофельная с мясом птицы со сметанным соусом","150/30",243.48]
[null,null,"Кисель","180",75.24]
[null,null,"Хлеб пшеничный","25",58.75]
[null,null,"Хлеб ржаной","45",{"v":89.1,"d":"89.10"}]
[null,"Полдник/төштән соңгы аш","Молоко кипяченое","180",75.24]
[null,null,"Печенье","20",{"v":89.1,"d":"89.10"}]
[null,"Ужин/кичке аш","Эч-почмак с говядиной","100",414.29]
[null,null,"Чай с сахаром и лимоном","180/6/7",26.48]
[{"$nulls":3},"152,36 руб",{"$f":"E26+E25+E24+E23+E22+E21++E19+E18+E17+E16+E15+E14+E13","v":{"v":1515.2100000000003,"d":"1515.21"}}]

{"sheet":"16 мая","index":39,"n_rows":28,"n_cols":5,"rows_kept":28,"hidden":true}
[]
[null,"Согласно контракту"]
[null,"№2024.617"]
[null,"от 23.12.2023 г."]
[]
[]
[null,null,"6 день"]
[]
[null,"Д/сад","МБДОУ \"ЦРР-д/с № 22\"Алсу\"","День","2024-05-16"]
[]
[null,10,"Блюдо","С 3 лет","до 7 лет"]
[{"$nulls":3},"грамм","ккал"]
[null,"Завтрак/иртәнге аш","Каша пшенная молочная с маслом сливочным","180/3",208.76]
[null,null,"Чай с молоком и сахаром","180/6",75.76]
[null,null,"Бутерброд с маслом сливочным","30/5",{"v":111.6,"d":"111.60"}]
[null,"09.00","Сок","180",94.4]
[null,"Обед/төшке аш","Салат картофельный с морковуью и кукурузой к/с","60",24.24]
[null,null,"Суп из овощей на курином б-не, с мясными фрикадельками, со сметаной","180/11/7",101.49]
[null,null,"Ежики куриные в сметанно-томатномном соусе","50/25",123.03]
[null,null,"вермишель отварной","130",135.46]
[null,null,"Напиток из сухофруктов","180",{"v":87.5,"d":"87.50"}]
[null,null,"Хлеб пшеничный","25",58.75]
[null,null,"Хлеб ржаной","45",{"v":89.1,"d":"89.10"}]
[null,"Полдник/төштән соңгы аш","Катык","180",91.86]
[null,null,"Булочка с сахаром","50",170.67]
[null,"Ужин/кичке аш","Запеканка творожная с повидлом","120/30",{"v":418.5,"d":"418.50"}]
[null,null,"Напиок из шиповника","180/5",{"v":24.1,"d":"24.10"}]
[{"$nulls":3},"152,36 руб",{"$f":"E27+E26+E25+E24+E23+E22+E20+E19+E18+E17+E16+E15+E14+E13","v":1727.72}]

{"sheet":"17 мая","index":40,"n_rows":31,"n_cols":5,"rows_kept":31,"hidden":true}
[]
[null,"Согласно контракту"]
[null,"№2024.617"]
[null,"от 23.12.2023 г."]
[]
[null,null,"7 день"]
[]
[]
[null,"Д/сад","МБДОУ \"ЦРР-д/с № 22\"Алсу\"","День","2024-05-17"]
[]
[null,10,"Блюдо","С 3 лет","до 7 лет"]
[{"$nulls":3},"грамм","ккал"]
[null,"Завтрак/иртәнге аш","Каша кукурузная молочная с маслом сливочным","180/5",274.16]
[null,null,"Кофейный напиток с молоком ","180",42.67]
[null,null,"Бутерброд с маслом сливочным","30/5",{"v":111.6,"d":"111.60"}]
[null,null,"Сыр порционно","10",34.33]
[null,"09.00","Сок","180",94.4]
[null,"Обед/төшке аш","Салат из квашенной капусты","60",53.88]
[null,null,"Суп картофельный с клецками на мясном б-не с мясом","180/10",121.66]
[null,null,"Гуляш из отварной говядины","40/40",{"v":131.2,"d":"131.20"}]
[null,null,"Пюре картофельное","140",{"v":128.1,"d":"128.10"}]
[null,null,"Компот из свежих фруктов","180",55.26]
[null,null,"Хлеб пшеничный","25",58.75]
[null,null,"Хлеб ржаной","45",{"v":89.1,"d":"89.10"}]
[null,"Полдник/төштән соңгы аш","Кефир","180",{"v":90,"d":"90.00"}]
[null,null,"мармелад","10",{"v":83,"d":"83.00"}]
[null,"Ужин/кичке аш","Биточки-рубленные из рыбы","70",{"v":124.6,"d":"124.60"}]
[null,null,"Каша гречневая рассыпчатая с овощами с маслом сливочным","130/3",181.83]
[null,null,"Чай с сахаром и лимоном","180/6/7",26.48]
[null,null,"Хлеб пшеничный","30",{"v":70.5,"d":"70.50"}]
[{"$nulls":3},"152,36 руб",{"$f":"E29+E27+E26+E25+E24+E23+E21+E20+E19+E18+E17+E15+E14+E13","v":{"v":1429.6000000000001,"d":"1429.60"}}]

{"sheet":"20 мая","index":41,"n_rows":29,"n_cols":5,"rows_kept":29,"hidden":true}
[]
[null,"Согласно контракту"]
[null,"№2024.617"]
[null,"от 23.12.2023 г."]
[]
[]
[null,null,"8 день"]
[]
[null,"Д/сад","МБДОУ \"ЦРР-д/с № 22\"Алсу\"","День","2024-05-20"]
[]
[null,10,"Блюдо","С 3 лет","до 7 лет"]
[{"$nulls":3},"грамм","ккал"]
[null,"Завтрак/иртәнге аш","Каша манная молочная с маслом сливочным","180/5",{"v":199.5,"d":"199.50"}]
[null,null,"Какао с молоком ","180/6",58.83]
[null,null,"Бутерброд с маслом сливочным","30/5",{"v":111.6,"d":"111.60"}]
[null,"09.00","Апельсин","100",{"v":47,"d":"47.0"}]
[null,"Обед/төшке аш","Икра кабачковая","50",62.34]
[null,null,"Щи со свежей капустой с картофелем на курином б-не, с куриными фрикадельками и со сметаной","180/11/7",104.59]
[null,null,"Биточки домашние","70",{"v":225.4,"d":"225.40"}]
[null,null,"Рис отварной рассыпчатый с маслом сливочным","130/20",192.01]
[null,null,"Компот из изюма","180",{"v":62.1,"d":"62.10"}]
[null,null,"Хлеб пшеничный","25",58.75]
[null,null,"Хлеб ржаной","45",{"v":89.1,"d":"89.10"}]
[null,"Полдник/төштән соңгы аш","Молоко кипяченое","180",{"v":96.3,"d":"96.30"}]
[null,null,"Кондитерские изделия (печенье)","20",{"v":90.2,"d":"90.20"}]
[null,"Ужин/кичке аш","Омлет натуральный","150",335.23]
[null,null,"Чай с сахаром","180/6",{"v":24.1,"d":"24.10"}]
[null,null,"Хлеб пшеничный","30",{"v":70.5,"d":"70.50"}]
[{"$nulls":3},"152,36 руб",{"$f":"E27+E26+E25+E24+E23+E22+E20+E19+E18+E17+E16+E15+E14+E13","v":{"v":1694.9499999999998,"d":"1694.95"}}]

{"sheet":"1 августа","index":42,"n_rows":28,"n_cols":5,"rows_kept":28,"hidden":true}
[]
[null,"Согласно контракту"]
[null,"№2024.617"]
[null,"от 23.12.2023 г."]
[]
[]
[null,null,"9 день"]
[]
[null,"Д/сад","МБДОУ \"ЦРР-д/с № 22\"Алсу\""]
[]
[null,10,"Блюдо","С 3 лет","до 7 лет"]
[{"$nulls":3},"грамм","ккал"]
[null,"Завтрак/иртәнге аш","Каша пшеничная молочная с маслом сливочным","180/3",241.16]
[null,null,"Чай с молоком и сахаром","180/6",75.76]
[null,null,"Бутерброд с сыром,  маслом сливочным","30/5/5",128.77]
[null,"09.00","Яблоко","100",{"v":47,"d":"47.0"}]
[null,"Обед/төшке аш","огурцы соленые","50",53.88]
[null,null,"суп лапша домашняя на курином б-не, с мясом птицы","180/10",114.78]
[null,null,"Жаркое из птицы по домашнему","180",303.43]
[null,null,"Напиток из сухофруктов","180",{"v":87.5,"d":"87.50"}]
[null,null,"Хлеб пшеничный","25",58.75]
[null,null,"Хлеб ржаной","45",{"v":89.1,"d":"89.10"}]
[null,"Полдник/төштән соңгы аш","кисломолочный напиток","180",{"v":96.3,"d":"96.30"}]
[null,null,"Кондитерские изделия (печенье)","20",{"v":90.2,"d":"90.20"}]
[null,"Ужин/кичке аш","Ватрушка с творогом","90",404.05]
[null,null,"чай с сахаром и лимоном","180/6/7",26.48]
[]
[{"$nulls":3},"152,36 руб",{"$f":"E26+E25+E24+E23+E22+E21+E20+E19+E18+E17+E16+E15+E14+E13","v":1817.16}]

{"sheet":"2 августа","index":43,"n_rows":29,"n_cols":5,"rows_kept":29,"hidden":true}
[]
[null,"Согласно контракту"]
[null,"№2024.617"]
[null,"от 23.12.2023 г."]
[]
[null,null,"10 день"]
[]
[]
[null,"Д/сад","МБДОУ \"ЦРР-д/с № 22\"Алсу\""]
[]
[null,10,"Блюдо","С 3 лет","до 7 лет"]
[{"$nulls":3},"грамм","ккал"]
[null,"Завтрак/иртәнге аш","Каша геркулесовая молочная с маслом сливочным","180/5",251.91]
[null,null,"Кофейный напиток с молоком","180/6",42.67]
[null,null,"Бутерброд с маслом сливочным","30/5",{"v":111.6,"d":"111.60"}]
[null,"09.00","Сок","180",{"v":96,"d":"96.0"}]
[null,"Обед/төшке аш","Салат из свеклы с сыром","60",78.42]
[null,null,"Рассольник ленинградский с куриными фрикадельками, со сметаной","180/11/7",117.51]
[null,null,"Котлеты рыбные с маслом сливочным","70/3",144.36]
[null,null,"Макаронные изделия отварные с овощами","130",163.28]
[null,null,"Кисель","180",75.24]
[null,null,"хлеб пшеничный","25",58.75]
[null,null,"Хлеб ржаной","45",{"v":89.1,"d":"89.10"}]
[null,"Полдник/төштән соңгы аш","Молоко кипяченое","180",{"v":96.3,"d":"96.30"}]
[null,null,"Кондитерские изделия (печенье)","20",{"v":90.2,"d":"90.20"}]
[null,"Ужин/кичке аш","Капуста тушеная с мясом ","180",{"v":250.3,"d":"250.30"}]
[null,null,"Напиток из шиповника","180/6",79.38]
[null,null,"Хлеб пшеничный","30",{"v":70.5,"d":"70.50"}]
[{"$nulls":3},"152,36 руб",{"$f":"E28+E27+E26+E25+E24+E23+E22+E21+E20+E19+E18+E17+E16+E15+E14+E13","v":1815.52}]

{"sheet":"01 июля","index":44,"n_rows":27,"n_cols":5,"rows_kept":27,"hidden":true}
[null,"Согласно контракту"]
[null,"№2024.617"]
[null,"от 23.12.2023 г."]
[]
[null,null,"2 день"]
[]
[]
[null,"Д/сад","МБДОУ \"ЦРР-д/с № 22\"Алсу\""]
[]
[null,10,"Блюдо","С 3 лет","до 7 лет"]
[{"$nulls":3},"грамм","ккал"]
[null,"Завтрак/иртәнге аш","Каша полбяная молочная с маслом сливочным","180/3",202.64]
[null,null,"какао с молоком","180",58.83]
[null,null,"Бутерброд с сыром, маслом сливочным","30/10/5",{"v":146.1,"d":"146.10"}]
[null,"09.00","Сок","180",{"v":76,"d":"76.0"}]
[null,"Обед/төшке аш","Салат из картофеля с солеными огурцами","60",66.84]
[null,null,"Борщ со свежей капустой, картофелем со сметаной","180/7",87.64]
[null,null,"Тефтели куриные запеченные в сметанно-томатном соусе","50/25",{"v":112.5,"d":"112.50"}]
[null,null,"Макароны отварны с маслом сливочным","130/3",155.22]
[null,null,"Компот из свежих яблок","180",55.26]
[null,null,"Хлеб пшеничный","25",58.75]
[null,null,"Хлеб ржаной","45",{"v":89.1,"d":"89.10"}]
[null,"Полдник/төштән соңгы аш","Молоко кипяченное","180",{"v":96.3,"d":"96.30"}]
[null,null,"Печенье","20",{"v":90.2,"d":"90.20"}]
[null,"Ужин/кичке аш","Запеканка творожная с повидлом","120/30",{"v":418.5,"d":"418.50"}]
[null,null,"Чай с сахаром и лимоном","180/6/7",26.48]
[{"$nulls":3},"170,64",{"$f":"E26+E25+E12+E24+E23+E22+E21+E20+E19+E17+E18+E16+E15+E14+E13","v":1740.36}]

{"sheet":"02 июля","index":45,"n_rows":29,"n_cols":5,"rows_kept":29,"hidden":true}
[]
[null,"Согласно контракту"]
[null,"№2024.617"]
[null,"от 23.12.2023 г."]
[]
[null,null,"3 день"]
[]
[]
[null,"Д/сад","МБДОУ \"ЦРР-д/с № 22\"Алсу\""]
[]
[null,10,"Блюдо","С 3 лет","до 7 лет"]
[{"$nulls":3},"грамм","ккал"]
[null,"Завтрак/иртәнге аш","Каша манная молочная с маслом сливочным","180/3",{"v":186.3,"d":"186.30"}]
[null,null,"Чай с сахаром и молоком","180/6",72.7]
[null,null,"Бутерброд с маслом сливочным","30/5",{"v":111.6,"d":"111.60"}]
[null,"09.00","Фрукты","100",{"v":47,"d":"47.0"}]
[null,"Обед/төшке аш","Огурцы порционно","50","42.48"]
[null,null,"Суп картофельный гороховый на б-не из индейки","180",106.74]
[null,null,"плов из отварной индейки","200",290.64]
[null,null,"Компот из урюка","180",{"v":68.2,"d":"68.20"}]
[null,null,"Хлеб пшеничный","20",{"v":47,"d":"47.00"}]
[null,null,"Хлеб ржаной","45",{"v":89.1,"d":"89.10"}]
[null,"Полдник/төштән соңгы аш","Ряженка","180",{"v":91.8,"d":"91.80"}]
[null,null,"Булочка дорожная","50",{"v":165.5,"d":"165.50"}]
[null,"Ужин/кичке аш","Фрикадельки рыбный отварные","80",{"v":88,"d":"88.00"}]
[null,null,"Картофель запеченный","140",{"v":212.8,"d":"212.80"}]
[null,null,"Напиток из шиповника","180/6",79.38]
[null,null,"Хлеб пшеничный","30",{"v":70.5,"d":"70.50"}]
[{"$nulls":3},"170,64 руб",1770.11]

{"sheet":"03 июля","index":46,"n_rows":27,"n_cols":5,"rows_kept":27,"hidden":true}
[]
[null,"Согласно контракту"]
[null,"№2024.617"]
[null,"от 23.12.2023 г."]
[]
[]
[null,null,"4 день"]
[]
[null,"Д/сад","МБДОУ \"ЦРР-д/с № 22\"Алсу\""]
[]
[null,10,"Блюдо","С 3 лет","до 7 лет"]
[{"$nulls":3},"грамм","ккал"]
[null,"Завтрак/иртәнге аш","Каша ячневая молочная с маслом сливочным","180/3",223.41]
[null,null,"Кофейный напиток с молоком","180/6",42.67]
[null,null,"Бутер с маслом слив,с повидлом","30/5/10",{"v":119.8,"d":"119.80"}]
[null,"09.00","Сок","100",{"v":76,"d":"76.0"}]
[null,"Обед/төшке аш","Салат из зеленого горошка","50",{"v":41.8,"d":"41.80"}]
[null,null,"Суп картофельный с пшенной крупой на курином б-не","180",61.74]
[null,null,"птица, тушенная с соусе с овощами","200",{"v":264,"d":"264.00"}]
[null,null,"Компот из сухофруктов","180",68.18]
[null,null,"Хлеб пшеничный","25",58.75]
[null,null,"Хлеб ржаной","45",{"v":89.1,"d":"89.10"}]
[null,"Полдник/төштән соңгы аш","Кефир","180",{"v":102,"d":"102.00"}]
[null,"Ужин/кичке аш","Омлет натуральный с сыром","150",289.66]
[null,null,"Чай с сахаром","180/6",{"v":24.1,"d":"24.10"}]
[null,null,"Хлеб пшеничный","30",{"v":70.5,"d":"70.50"}]
[{"$nulls":3},"170,64руб",{"$f":"E26+E25+E24+E23+E22+E21+E20+E19+E18+E17+E16+E15+E14+E13","v":1531.71}]

{"sheet":"01 августа","index":47,"n_rows":28,"n_cols":5,"rows_kept":28,"hidden":true}
[]
[null,"Согласно контракту"]
[null,"№2024.617"]
[null,"от 23.12.2023 г."]
[]
[null,null,"5 день"]
[]
[]
[null,"Д/сад","МБДОУ \"ЦРР-д/с № 22\"Алсу\""]
[]
[null,10,"Блюдо","С 3 лет","до 7 лет"]
[{"$nulls":3},"грамм","ккал"]
[null,"Завтрак/иртәнге аш","Суп молочный с вермишелью","200",{"v":120,"d":"120.00"}]
[null,null,"какао с молоком","180",58.83]
[null,null,"Бутерброд с сыром, маслом сливочным","30/10/5",{"v":146.1,"d":"146.10"}]
[null,"09.00","Яблоко","100",{"v":47,"d":"47.0"}]
[null,"Обед/төшке аш","Венегрет овощной","60",75.06]
[null,null,"Суп из овощей с мясными фрикадельками,со сметаной","180/10/7",106.12]
[null,null,"Котлеты рубленые из говядины","70",211.06]
[null,null,"Каша гречневая рассыпчатая с овощами,с маслом слив","130/2",141.96]
[null,null,"Компот из свежих яблок","180",55.26]
[null,null,"Хлеб пшеничный","25",58.75]
[null,null,"Хлеб ржаной","45",{"v":89.1,"d":"89.10"}]
[null,"Полдник/төштән соңгы аш","Катык","180",{"v":91.8,"d":"91.80"}]
[null,null,"Мармелад","10",{"v":83,"d":"83.00"}]
[null,"Ужин/кичке аш","Элеш с птицей","100",{"v":245,"d":"245.00"}]
[null,null,"Чай с сахаром и лимоном","180/6/7",26.48]
[{"$nulls":3},"170,64 руб",{"$f":"E27+E26+E25+E24+E23+E22+E21+E20+E18+E13+E19+E17+E16+E15+E14","v":{"v":1555.5199999999998,"d":"1555.52"}}]

{"sheet":"1 сентября","index":48,"n_rows":28,"n_cols":5,"rows_kept":28,"hidden":true}
[]
[null,"Согласно контракту"]
[null,"№2024.617"]
[null,"от 23.12.2023 г."]
[]
[null,null,"6 день"]
[]
[]
[null,"Д/сад","МБДОУ \"ЦРР-д/с № 22\"Алсу\""]
[]
[null,10,"Блюдо","С 3 лет","до 7 лет"]
[{"$nulls":3},"грамм","ккал"]
[null,"Завтрак/иртәнге аш","Каша пшенная мол с маслом сливочным","180/30",208.76]
[null,null,"Чай с молоком,с сахаром","180/6",72.7]
[null,null,"Бутерброд с маслом сливочным","30/5",{"v":111.6,"d":"111.60"}]
[null,"09.00","Сок","180",{"v":76,"d":"76.0"}]
[null,"Обед/төшке аш","Салат из зеленого горошка","50",{"v":34.8,"d":"34.80"}]
[null,null,"Рассольник Лениноградский,со сметаной","180/7",88.56]
[null,null,"Тефтели куриные запеченные в сметанно-томатном соусе","50/25",{"v":112.5,"d":"112.50"}]
[null,null,"Вермишель отворная","130",135.46]
[null,null,"Напиток из сухофруктов","180",68.18]
[null,null,"Хлеб пшеничный","25",58.75]
[null,null,"Хлеб ржаной","45",{"v":89.1,"d":"89.10"}]
[null,"Полдник/төштән соңгы аш","Ряженка","180",{"v":96.3,"d":"96.30"}]
[null,null,"Печенье","20",{"v":90.2,"d":"90.20"}]
[null,"Ужин/кичке аш","Сырники творожные со сгущ молоком","120/30",{"v":390.4,"d":"390.40"}]
[null,null,"Напиток из шиповника","180/6",79.38]
[{"$nulls":3},"170,64 руб",{"$f":"E27+E26+E25+E24+E23+E22+E21+E20+E19+E18+E17+E16+E15+E14+E13","v":{"v":1712.6899999999998,"d":"1712.69"}}]

{"sheet":"02 сентября","index":49,"n_rows":28,"n_cols":5,"rows_kept":28,"hidden":true}
[]
[null,"Согласно контракту"]
[null,"№2024.617"]
[null,"от 23.12.2023 г."]
[]
[]
[null,null,"7 день"]
[]
[null,"Д/сад","МБДОУ \"ЦРР-д/с № 22\"Алсу\""]
[]
[null,10,"Блюдо","С 3 лет","до 7 лет"]
[{"$nulls":3},"грамм","ккал"]
[null,"Завтрак/иртәнге аш","Каша ячневая молочная с маслом слив","180/3",223.41]
[null,null,"Кофейный напиток с молоком","180/6",42.67]
[null,null,"Бутерброд с сыром, с маслом слив","30/10/5",{"v":146.1,"d":"146.10"}]
[null,"09.00","Яблоки","100",{"v":47,"d":"47.0"}]
[null,"Обед/төшке аш","Огурцы свежие порционно","60",{"v":6,"d":"6.00"}]
[null,null,"Суп картофельный с клецками на б-не из индейки","180",120.08]
[null,null,"Гуляш из отварной индейки","40/40",136.31]
[null,null,"Каша перловая рассып с овощами и маслом","130",137.68]
[null,null,"Напиток из яблок","180","55.26"]
[null,null,"Хлеб пшеничный","25",58.75]
[null,null,"Хлеб ржаной","45",{"v":89.1,"d":"89.10"}]
[null,"Полдник/төштән соңгы аш","Кефир","180",{"v":90,"d":"90.00"}]
[null,null,"Пряник","30",{"v":128.1,"d":"128.10"}]
[null,"Ужин/кичке аш","Омлет натуральный","150",335.23]
[null,null,"Чай с сахаром и лимоном","180/6/7",26.48]
[{"$nulls":3},"170,64 руб",1647.01]

{"sheet":"1 октября","index":50,"n_rows":30,"n_cols":5,"rows_kept":30,"hidden":true}
[]
[null,"Согласно контракту"]
[null,"№2024.617"]
[null,"от 23.12.2023 г."]
[]
[]
[null,null,"8 день"]
[]
[null,"Д/сад","МБДОУ \"ЦРР-д/с № 22\"Алсу\""]
[]
[null,10,"Блюдо","С 3 лет","до 7 лет"]
[{"$nulls":3},"грамм","ккал"]
[null,"Завтрак/иртәнге аш","Каша манная молочная с маслом сливочным","180/5",{"v":199.5,"d":"199.50"}]
[null,null,"Какао с молоком ","180/6",58.83]
[null,null,"Бутерброд с маслом сливочным","30/5",{"v":111.6,"d":"111.60"}]
[null,"09.00","Сок","180",{"v":76,"d":"76.0"}]
[null,"Обед/төшке аш","Свежие томаты порционно","60",{"v":11,"d":"11.00"}]
[null,null,"Щи со свежей капустой с картофелем, со сметаной","180/11/7",75.96]
[null,null,"Биточки домашние","70",{"v":225.4,"d":"225.40"}]
[null,null,"Пюре гороховое","130",196.94]
[null,null,"Компот из изюма","180",{"v":62.1,"d":"62.10"}]
[null,null,"Хлеб пшеничный","25",58.75]
[null,null,"Хлеб ржаной","45",{"v":89.1,"d":"89.10"}]
[null,"Полдник/төштән соңгы аш","Молоко кипяченое","180",{"v":96.3,"d":"96.30"}]
[null,null,"Булочка с сахаром","35",95.67]
[null,"Ужин/кичке аш","Рыба тушенная с овощами","50/25",245.23]
[null,null,"Рис отварной рассып-ый с масл слив","130/2",192.01]
[null,null,"Чай с сахаром","180/6",{"v":24.1,"d":"24.10"}]
[null,null,"Хлеб пшеничный","30",{"v":70.5,"d":"70.50"}]
[{"$nulls":3},"170,64 руб",{"$f":"E29+E28+E26+E25+E24+E23+E22+E20+E19+E18+E17+E16+E15+E14+E13","v":{"v":1634.8799999999999,"d":"1634.88"}}]

{"sheet":"2 октября","index":51,"n_rows":27,"n_cols":5,"rows_kept":27,"hidden":true}
[]
[null,"Согласно контракту"]
[null,"№2024.617"]
[null,"от 23.12.2023 г."]
[]
[]
[null,null,"9 день"]
[]
[null,"Д/сад","МБДОУ \"ЦРР-д/с № 22\"Алсу\""]
[]
[null,10,"Блюдо","С 3 лет","до 7 лет"]
[{"$nulls":3},"грамм","ккал"]
[null,"Завтрак/иртәнге аш","Каша пшеничная молочная с маслом сливочным","180/3",241.16]
[null,null,"Чай с молоком и сахаром","180/6",72.7]
[null,null,"Бутерброд с  маслом сливочным","30/5",{"v":111.6,"d":"111.60"}]
[null,"09.00","Яблоко","100",{"v":47,"d":"47.0"}]
[null,"Обед/төшке аш","Салат из свежий капусты с яблоками","60",54.06]
[null,null,"суп лапша домашняя на курином б-не, с мясом птицы","180/10",114.78]
[null,null,"Жаркое из птицы по домашнему","180",303.43]
[null,null,"Напиток из сухофруктов","180",68.18]
[null,null,"Хлеб пшеничный","25",58.75]
[null,null,"Хлеб ржаной","45",{"v":89.1,"d":"89.10"}]
[null,"Полдник/төштән соңгы аш","кисломолочный напиток","180",{"v":91.8,"d":"91.80"}]
[null,"Ужин/кичке аш","Ватрушка королевская","150",{"v":404,"d":"404.00"}]
[null,null,"чай с сахаром и лимоном","180/6/7",26.48]
[]
[{"$nulls":3},"170,64 руб",{"$f":"E25+E24+E23+E22+E21+E20+E19+E18+E17+E16+E15+E14+E13","v":1683.04}]

{"sheet":"3 октября","index":52,"n_rows":29,"n_cols":5,"rows_kept":29,"hidden":true}
[]
[null,"Согласно контракту"]
[null,"№2024.617"]
[null,"от 23.12.2023 г."]
[]
[null,null,"10 день"]
[]
[]
[null,"Д/сад","МБДОУ \"ЦРР-д/с № 22\"Алсу\""]
[]
[null,10,"Блюдо","С 3 лет","до 7 лет"]
[{"$nulls":3},"грамм","ккал"]
[null,"Завтрак/иртәнге аш","Каша геркулесовая молочная с маслом сливочным","180/5",{"v":233.1,"d":"233.10"}]
[null,null,"Кофейный напиток с молоком","180/6",42.67]
[null,null,"Бутербр с маслом слив, с сыром","30/5",{"v":146.1,"d":"146.10"}]
[null,"09.00","Сок","180",{"v":76,"d":"76.0"}]
[null,"Обед/төшке аш","Огурцы свежие порционно","50",{"v":11,"d":"11.00"}]
[null,null,"Суп картофельный с рисовой крупой с мясными фрик,со сметаной","180/10/5",{"v":79.6,"d":"79.60"}]
[null,null,"Котлеты рыбные с маслом сливочным","70/3",144.36]
[null,null,"Макаронные изделия отварные с овощами","130",163.28]
[null,null,"Кисель","180",75.24]
[null,null,"хлеб пшеничный","25",58.75]
[null,null,"Хлеб ржаной","45",{"v":89.1,"d":"89.10"}]
[null,"Полдник/төштән соңгы аш","Молоко кипяченое","180",{"v":96.3,"d":"96.30"}]
[null,null,"Булочка Российская","35",{"v":88.5,"d":"88.50"}]
[null,"Ужин/кичке аш","Каша гречневая вязкая с мясом и овощами","180",{"v":268.5,"d":"268.50"}]
[null,null,"Напиток из шиповника","180/6",79.38]
[null,null,"Хлеб пшеничный","30",{"v":70.5,"d":"70.50"}]
[{"$nulls":3},"170,64  руб",{"$f":"E28+E27+E26+E25+E24+E23+E22+E21+E20+E19+E18+E17+E16+E15+E14+E13","v":{"v":1722.3799999999997,"d":"1722.38"}}]

{"sheet":"1 ноября","index":53,"n_rows":29,"n_cols":5,"rows_kept":29}
[]
[null,"Согласно контракту"]
[null,"№2024.617"]
[null,"от 23.12.2023 г."]
[]
[]
[null,null,"1 день"]
[]
[null,"Д/сад","МБДОУ \"Детский сад \"Солнышко\" с. Ямаши"]
[]
[null,10,"Блюдо","С 3 лет","до 7 лет"]
[{"$nulls":3},"грамм","ккал"]
[null,"Завтрак/иртәнге аш","Каша Дружба молочная с маслом сливочным","180/3",{"v":225,"d":"225.00"}]
[null,null,"Кофейный напиток с молоком","180/6",42.67]
[null,null,"Бутерброд с маслом сливочным","30/5",{"v":111.6,"d":"111.60"}]
[null,"09.00","Яблоко","100",{"v":47,"d":"47.0"}]
[null,"Обед/төшке аш","Кабачковая икра","50",{"v":41.8,"d":"41.80"}]
[null,null,"Суп вермишелевый с картофелем с мясными фрикадельками","180/15",114.56]
[null,null,"Голубцы ленивые со сметанно-томатным соусом","120/30",201.98]
[null,null,"Напиток из сухофруктов","180",68.18]
[null,null,"Хлеб ржаной","45",{"v":89.1,"d":"89.10"}]
[null,null,"Хлеб пшеничный","25",58.75]
[null,"Полдник/төштән соңгы аш","Кефир","180",{"v":90,"d":"90.00"}]
[null,null,"Вафли","20",{"v":192,"d":"192.00"}]
[null,"Ужин/кичке аш","Котлеты рыбные ","70",124.56]
[null,null,"Пюре картофельное","140",{"v":128.1,"d":"128.10"}]
[null,null,"Чай с сахаром","180/6",{"v":24.1,"d":"24.10"}]
[null,null,"Хлеб пшеничный","30",{"v":70.5,"d":"70.50"}]
[{"$nulls":3},"170,64 руб",{"$f":"E28+E27+E26+E25+E24+E23+E22+E21+E20+E19+E18+E17+E16+E15+E14+E13","v":{"v":1629.8999999999999,"d":"1629.90"}}]

{"sheet":"5 ноября","index":54,"n_rows":29,"n_cols":5,"rows_kept":29}
[]
[null,"Согласно контракту"]
[null,"№2024.617"]
[null,"от 23.12.2023 г."]
[]
[null,null,"3 день"]
[]
[]
[null,"Д/сад","МБДОУ \"Детский сад \"Солнышко\" с. Ямаши"]
[]
[null,10,"Блюдо","С 3 лет","до 7 лет"]
[{"$nulls":3},"грамм","ккал"]
[null,"Завтрак/иртәнге аш","Каша манная молочная с маслом сливочным","180/3",{"v":186.3,"d":"186.30"}]
[null,null,"Чай с сахаром и молоком","180/6",72.7]
[null,null,"Бутерброд с маслом сливочным","30/5",{"v":111.6,"d":"111.60"}]
[null,"09.00","Яблоко","100",{"v":47,"d":"47.0"}]
[null,"Обед/төшке аш","Салат из капусты с яблоками","50",54.06]
[null,null,"Суп картофельный гороховый на б-не из индейки","180",106.74]
[null,null,"плов из отварной индейки","200",290.64]
[null,null,"Компот из урюка","180",{"v":68.2,"d":"68.20"}]
[null,null,"Хлеб пшеничный","20",{"v":47,"d":"47.00"}]
[null,null,"Хлеб ржаной","45",{"v":89.1,"d":"89.10"}]
[null,"Полдник/төштән соңгы аш","Ряженка","180",{"v":91.8,"d":"91.80"}]
[null,null,"Булочка дорожная","50",{"v":165.5,"d":"165.50"}]
[null,"Ужин/кичке аш","Фрикадельки рыбный отварные","80",{"v":88,"d":"88.00"}]
[null,null,"Картофель запеченнй","140",{"v":212.8,"d":"212.80"}]
[null,null,"Напиток из шиповника","180/6",79.38]
[null,null,"Хлеб пшеничный","30",{"v":70.5,"d":"70.50"}]
[{"$nulls":3},"170,64 руб",{"$f":"E28+E27+E26+E25+E24+E23+E22+E21+E20+E19+E18+E17+E16+E15+E14+E13","v":1781.32}]

{"sheet":"7 ноября","index":55,"n_rows":27,"n_cols":5,"rows_kept":27}
[null,"Согласно контракту"]
[null,"№2024.617"]
[null,"от 23.12.2023 г."]
[]
[null,null,"5 день"]
[]
[]
[null,"Д/сад","МБДОУ \"Детский сад \"Солнышко\" с. Ямаши"]
[]
[null,10,"Блюдо","С 3 лет","до 7 лет"]
[{"$nulls":3},"грамм","ккал"]
[null,"Завтрак/иртәнге аш","Суп молочный с вермишелью","200",{"v":120,"d":"120.00"}]
[null,null,"какао с молоком","180",58.83]
[null,null,"Бутерброд с сыром, маслом сливочным","30/10/5",{"v":146.1,"d":"146.10"}]
[null,"09.00","Яблоко","100",{"v":47,"d":"47.0"}]
[null,"Обед/төшке аш","Венегрет овощной","60",75.06]
[null,null,"Суп из овощей с мясными фрикадельками,со сметаной","180/10/7",106.12]
[null,null,"Котлеты рубленые из говядины","70",211.06]
[null,null,"Каша гречневая рассыпчатая с овощами,с маслом слив","130/2",141.96]
[null,null,"Компот из свежих яблок","180",55.26]
[null,null,"Хлеб пшеничный","25",58.75]
[null,null,"Хлеб ржаной","45",{"v":89.1,"d":"89.10"}]
[null,"Полдник/төштән соңгы аш","Ацид.напиток","180",{"v":91.8,"d":"91.80"}]
[null,null,"Мармелад","10",{"v":83,"d":"83.00"}]
[null,"Ужин/кичке аш","Элеш с птицей","100",{"v":245,"d":"245.00"}]
[null,null,"Чай с сахаром и лимоном","180/6/7",26.48]
[{"$nulls":3},"170,64 руб",{"$f":"E26+E25+E24+E23+E22+E21+E20+E19+E17+E12+E18+E16+E15+E14+E13","v":{"v":1555.5199999999998,"d":"1555.52"}}]

{"sheet":"10 ноября","index":56,"n_rows":26,"n_cols":5,"rows_kept":26}
[null,"Согласно контракту"]
[null,"№2024.617"]
[null,"от 23.12.2023 г."]
[]
[]
[null,null,"6 день"]
[]
[null,"Д/сад","МБДОУ \"Детский сад \"Солнышко\" с. Ямаши"]
[]
[null,10,"Блюдо","С 3 лет","до 7 лет"]
[{"$nulls":3},"грамм","ккал"]
[null,"Завтрак/иртәнге аш","Каша манная молочная с маслом сливочным","180/3",{"v":186.3,"d":"186.30"}]
[null,null,"Чай с молоком и сахаром","180/6",75.76]
[null,null,"Бутерброд с маслом сливочным","30/5",111.68]
[null,"09.00","Сок","200",84.8]
[null,"Обед/төшке аш","Салат из кукурузы к/с","50",49.65]
[null,null,"Суп вермишелевый с картофелем с куриными фрикадельками","180/10",114.56]
[null,null,"Голубцы ленивые со сметанно-томатным соусом","120/30",201.98]
[null,null,"Напиток из сухофруктов","180",71.52]
[null,null,"Хлеб ржаной","45",89.19]
[null,"Полдник/төштән соңгы аш","Катык","180",{"v":92,"d":"92.00"}]
[null,null,"Печенье","40",{"v":166.8,"d":"166.80"}]
[null,"Ужин/кичке аш","Омлет","150",289.66]
[null,null,"Хлеб пшеничный","25",58.81]
[null,null,"Чай с сахаром,с яблоками","180/6",{"v":28.7,"d":"28.70"}]
[{"$nulls":3},"170,64 руб","МБДОУ \"Детский сад \"Солнышко\" с. Ямаши"]

{"sheet":"11 ноября","index":57,"n_rows":27,"n_cols":5,"rows_kept":27}
[null,"Согласно контракту"]
[null,"№2024.617"]
[null,"от 23.12.2023 г."]
[]
[null,null,"7 день"]
[]
[]
[null,"Д/сад","МБДОУ \"Детский сад \"Солнышко\" с. Ямаши"]
[]
[null,10,"Блюдо","С 3 лет","до 7 лет"]
[{"$nulls":3},"грамм","ккал"]
[null,"Завтрак/иртәнге аш","Каша ячневая молочная с маслом слив","180/3",{"v":214.8,"d":"214.80"}]
[null,null,"Кофейный напиток с молоком ","180/6",74.58]
[null,null,"Бутерброд с маслом слив и сыр","30/5/5",128.77]
[null,"09.00","Яблоко","100",{"v":47,"d":"47.0"}]
[null,"Обед/төшке аш","Салат из квашенной капусты","50",42.85]
[null,null,"Борщ со свежей капустой с картофелем на курином бульоне со сметаной","180/7",85.97]
[null,null,"Гуляш из отварной птицы","40/40",123.51]
[null,null,"Макаронные изделия отварные с маслом сливочным","130/3",165.79]
[null,null,"Компот из свежих яблок","180",103.14]
[null,null,"Хлеб пшеничный","30",70.57]
[null,null,"Хлеб ржаной","45",89.19]
[null,"Полдник/төштән соңгы аш","Напиток ацидоф","180",{"v":92,"d":"92.00"}]
[null,"Ужин/кичке аш","Расстегай с рыбой","100",{"v":220,"d":"220.00"}]
[null,null,"Напиток из шиповника","180/6",31.38]
[]
[{"$nulls":3},"170,64",{"$f":"E25+E24+E23+E22+E21+E20+E19+E18+E17+E16+E15+E14+E13+E12","v":{"v":1489.5499999999997,"d":"1489.55"}}]

{"sheet":"12 ноября","index":58,"n_rows":25,"n_cols":5,"rows_kept":25}
[null,"от 23.12.2023 г."]
[]
[]
[null,null,"8 день"]
[]
[null,"Д/сад","МБДОУ \"Детский сад \"Солнышко\" с. Ямаши"]
[]
[null,10,"Блюдо","С 3 лет","до 7 лет"]
[{"$nulls":3},"грамм","ккал"]
[null,"Завтрак/иртәнге аш","Каша геркулесовая молочная с маслом сливочным","180/3",238.71]
[null,null,"Какао с молоком","180/6",90.78]
[null,null,"Бутерброд с маслом сливочным","30/5",111.68]
[null,"09.00","Сок","200",84.8]
[null,"Обед/төшке аш","Винегрет","60",75.06]
[null,null,"Щи со свежей капустой с картофелем, со сметаной","180/10/7",{"v":84.8,"d":"84.80"}]
[null,null,"Тефтели мясные","60/20",125.85]
[null,null,"Каша гречневая рассыпчатая с маслом сливочным","130/3",205.27]
[null,null,"Компот из урюка","180",{"v":68.2,"d":"68.20"}]
[null,null,"Хлеб пшеничный","30",70.57]
[null,null,"Хлеб ржаной","45",89.19]
[null,"Полдник/төштән соңгы аш","Ряженка","180",{"v":92,"d":"92.00"}]
[null,null,"Сушки","20",{"v":67.8,"d":"67.80"}]
[null,"Ужин/кичке аш","Пудинг творожный запеченный с повидлом","130/20",{"v":360.2,"d":"360.20"}]
[null,null,"Чай с сахаром","180/6",{"v":24.1,"d":"24.10"}]
[{"$nulls":3},"170,64 руб",{"$f":"+E24+E23+E22+E21+E20+E19+E18+E17+E16+E15+E14+E13+E12+E11+E10","v":{"v":1789.0099999999998,"d":"1789.01"}}]

{"sheet":"13 ноября","index":59,"n_rows":27,"n_cols":5,"rows_kept":27}
[null,"Согласно контракту"]
[null,"№2024.617"]
[null,"от 23.12.2023 г."]
[]
[]
[null,null,"9 день"]
[]
[null,"Д/сад","МБДОУ \"Детский сад \"Солнышко\" с. Ямаши"]
[]
[null,10,"Блюдо","С 3 лет","до 7 лет"]
[{"$nulls":3},"грамм","ккал"]
[null,"Завтрак/иртәнге аш","Каша пшенная молочная с маслом сливочным","180/3",184.24]
[null,null,"Чай с молоком и сахаром","180/6",75.76]
[null,null,"Бутерброд с  маслом сливочным,с сыром","30/5/5",128.77]
[null,"09.00","Апельсин","100",{"v":43,"d":"43.0"}]
[null,"Обед/төшке аш","салат из моркови с сахаром","60",31.38]
[null,null,"суп лапша домашняя на курином б-не, с мясом птицы","180/10",109.54]
[null,null,"Пюре картофельное","140",{"v":128.1,"d":"128.10"}]
[null,null,"Рыба тушеная с овощами","50/25",{"v":105,"d":"105.00"}]
[null,null,"Напиток из сухофруктов","180",71.52]
[null,null,"Хлеб пшеничный","30",70.57]
[null,null,"Хлеб ржаной","45",89.19]
[null,"Полдник/төштән соңгы аш","кисломолочный напиток","180",{"v":92,"d":"92.00"}]
[null,"Ужин/кичке аш","Вак балиш с рисом и мясом","150",234.63]
[null,null,"чай с сахаром и лимоном","180/6/7",26.48]
[]
[{"$nulls":3},"170,64 руб",{"$f":"E25+E24+E23+E22+E21+E20+E19+E18+E17+E16+E15+E14+E13+E12","v":1390.18}]

{"sheet":"14 ноября","index":60,"n_rows":26,"n_cols":6,"rows_kept":26}
[null,null,"Согласно контракту"]
[null,null,"№2024.617"]
[null,null,"от 23.12.2023 г."]
[]
[{"$nulls":3},"10 день"]
[]
[]
[null,null,"Д/сад","МБДОУ \"Детский сад \"Солнышко\" с. Ямаши"]
[]
[null,null,10,"Блюдо","С 3 лет","до 7 лет"]
[{"$nulls":4},"грамм","ккал"]
[null,null,"Завтрак/иртәнге аш","Каша рисовая молочная с маслом сливочным","180/3",{"v":225,"d":"225.00"}]
[{"$nulls":3},"Чай с сахаром, с яблоком","180/6/10",28.7]
[{"$nulls":3},"Бутербр с маслом слив, с сыром","30/5",111.68]
[null,null,"09.00","Сок","200",84.8]
[null,null,"Обед/төшке аш","Салат из зеленого горошка к/с","50",{"v":41.8,"d":"41.80"}]
[{"$nulls":3},"Суп картофельный с пшенной крупой на курином бульоне","180/10/5",51.45]
[{"$nulls":3},"Жаркое по - домашнему из отварной птицы","200",{"v":236.2,"d":"236.20"}]
[{"$nulls":3},"Компот из фруктов","180",39.47]
[{"$nulls":3},"хлеб пшеничный","30",70.57]
[{"$nulls":3},"Хлеб ржаной","45",89.19]
[null,null,"Полдник/төштән соңгы аш","Кефир","185",{"v":90,"d":"90.00"}]
[{"$nulls":3},"Пряники","35",{"v":128.1,"d":"128.10"}]
[null,null,"Ужин/кичке аш","Сырники из творога с повидлом","120/30",{"v":379.8,"d":"379.80"}]
[{"$nulls":3},"Напиток из шиповника","180/6",31.38]
[{"$nulls":4},"170,64  руб",{"$f":"F25+F24+F23+F22+F21+F20+F19+F18+F17+F16+F15+F14+F13+F12","v":1608.14}]

{"sheet":"01 апреля","index":61,"n_rows":29,"n_cols":5,"rows_kept":29,"hidden":true}
[null,"Согласно контракту"]
[null,"№2024.617"]
[null,"от 23.12.2023 г."]
[]
[null,null,"7 день"]
[]
[]
[null,"Д/сад","МБДОУ \"ЦРР-д/с № 22\"Алсу\""]
[]
[null,10,"Блюдо","С 3 лет","до 7 лет"]
[{"$nulls":3},"грамм","ккал"]
[null,"Завтрак/иртәнге аш","Каша ячневая молочная с маслом слив","180/3",223.41]
[null,null,"Кофейный напиток с молоком ","180/6",42.67]
[null,null,"Бутерброд с маслом слив и сыр","30/10/5",{"v":146.1,"d":"146.10"}]
[null,"09.00","Яблоко","100",{"v":47,"d":"47.0"}]
[null,"Обед/төшке аш","Салат из отварной свеклы с маслом растительным","60",56.34]
[null,null,"Суп картофельный с клецками на б-не из индейки","180",120.08]
[null,null,"Гуляш из отварной индейки","40/40",136.31]
[null,null,"Пюре из бобовых и картофеля с масл слив","140",{"v":172.4,"d":"172.40"}]
[null,null,"Компот из свежих яблок","180",55.26]
[null,null,"Хлеб пшеничный","25",58.75]
[null,null,"Хлеб ржаной","45",{"v":89.1,"d":"89.10"}]
[null,"Полдник/төштән соңгы аш","Кефир","180",{"v":90,"d":"90.00"}]
[null,null,"пряники","35",{"v":128.1,"d":"128.10"}]
[null,"Ужин/кичке аш","Рыба тушенная с овощами","40/20",{"v":63,"d":"63.00"}]
[null,null,"Рис отварной рассыпчатый с маслом","130/20",192.01]
[null,null,"Чай с сахаром и лимоном","180/6/7",26.48]
[]
[{"$nulls":3},"170,64",{"$f":"E27+E26+E25+E24+E23+E22+E21+E20+E19+E18+E17+E16+E15+E14+E13+E12","v":1647.01}]

{"sheet":"02 апреля","index":62,"n_rows":26,"n_cols":5,"rows_kept":26,"hidden":true}
[null,"от 23.12.2023 г."]
[]
[]
[null,null,"8 день"]
[]
[null,"Д/сад","МБДОУ \"ЦРР-д/с № 22\"Алсу\""]
[]
[null,10,"Блюдо","С 3 лет","до 7 лет"]
[{"$nulls":3},"грамм","ккал"]
[null,"Завтрак/иртәнге аш","Каша манная молочная с маслом сливочным","180/3",{"v":186.3,"d":"186.30"}]
[null,null,"Какао с молоком","180/6",58.83]
[null,null,"Бутерброд с маслом сливочным","30/5",{"v":111.6,"d":"111.60"}]
[null,"09.00","Сок","180",{"v":76,"d":"76.0"}]
[null,"Обед/төшке аш","Салат из пропущенный моркови с яблоками","60",24.24]
[null,null,"Щи со свежей капустой с картофелем, со сметаной","180/11/7",75.96]
[null,null,"Биточки домашние","70",{"v":225.4,"d":"225.40"}]
[null,null,"Каша перловая рассыпчатая с овощами и маслом слив","130/30",137.68]
[null,null,"Компот из урюка","180",{"v":68.2,"d":"68.20"}]
[null,null,"Хлеб пшеничный","25",58.75]
[null,null,"Хлеб ржаной","45",{"v":89.1,"d":"89.10"}]
[null,"Полдник/төштән соңгы аш","Молоко кипяченое","180",{"v":96.3,"d":"96.30"}]
[null,null,"Булочка с сахаром","35",170.67]
[null,"Ужин/кичке аш","Омлет натуральный","150",335.23]
[null,null,"Чай с сахаром","180/6",{"v":24.1,"d":"24.10"}]
[null,null,"Хлеб пшеничный","30",{"v":70.5,"d":"70.50"}]
[{"$nulls":3},"170,64 руб",{"$f":"E25+E24+E23+E22+E21+E20+E19+E18+E17+E16+E15+E14+E13+E12+E11+E10","v":1808.86}]

{"sheet":"03 апреля","index":63,"n_rows":27,"n_cols":5,"rows_kept":27,"hidden":true}
[]
[null,"Согласно контракту"]
[null,"№2024.617"]
[null,"от 23.12.2023 г."]
[]
[]
[null,null,"9 день"]
[]
[null,"Д/сад","МБДОУ \"ЦРР-д/с № 22\"Алсу\""]
[]
[null,10,"Блюдо","С 3 лет","до 7 лет"]
[{"$nulls":3},"грамм","ккал"]
[null,"Завтрак/иртәнге аш","Каша пшеничная молочная с маслом сливочным","180/3",241.16]
[null,null,"Чай с молоком и сахаром","180/6",72.7]
[null,null,"Бутерброд с сыром,  маслом сливочным","30/5/5",{"v":111.6,"d":"111.60"}]
[null,"09.00","Яблоко","100",{"v":47,"d":"47.0"}]
[null,"Обед/төшке аш","Салат из квашенной капусты","50",42.85]
[null,null,"суп лапша домашняя на курином б-не, с мясом птицы","180/10",114.78]
[null,null,"Жаркое из птицы по домашнему","180",303.43]
[null,null,"Напиток из сухофруктов","180",68.18]
[null,null,"Хлеб пшеничный","25",58.75]
[null,null,"Хлеб ржаной","45",{"v":89.1,"d":"89.10"}]
[null,"Полдник/төштән соңгы аш","кисломолочный напиток","180",{"v":91.8,"d":"91.80"}]
[null,"Ужин/кичке аш","Ватрушка королевская","150",{"v":404,"d":"404.00"}]
[null,null,"чай с сахаром и лимоном","180/6/7",26.48]
[]
[{"$nulls":3},"170,64 руб",{"$f":"E25+E24+E23+E22+E21+E20+E19+E18+E17+E16+E15+E14+E13","v":1671.83}]

{"sheet":"04 апреля","index":64,"n_rows":28,"n_cols":5,"rows_kept":28,"hidden":true}
[]
[null,"Согласно контракту"]
[null,"№2024.617"]
[null,"от 23.12.2023 г."]
[]
[null,null,"10 день"]
[]
[]
[null,"Д/сад","МБДОУ \"ЦРР-д/с № 22\"Алсу\""]
[]
[null,10,"Блюдо","С 3 лет","до 7 лет"]
[{"$nulls":3},"грамм","ккал"]
[null,"Завтрак/иртәнге аш","Каша геркулесовая молочная с маслом сливочным","180/5",{"v":233.1,"d":"233.10"}]
[null,null,"Кофейный напиток с молоком","180/6",42.67]
[null,null,"Бутерброд с маслом сливочным с сыром","30/10/5",{"v":146.1,"d":"146.10"}]
[null,"09.00","Сок","180",{"v":76,"d":"76.0"}]
[null,"Обед/төшке аш","Салат из свеклы","60",56.34]
[null,null,"Суп картофельный с рисовой крупой,с мясн фрикадельками,со смет","180/10/5",{"v":79.6,"d":"79.60"}]
[null,null,"Котлеты рыбные с маслом сливочным","70/3",144.36]
[null,null,"Макаронные изделия отварные с овощами","130",163.28]
[null,null,"Кисель","180",75.24]
[null,null,"хлеб пшеничный","25",58.75]
[null,null,"Хлеб ржаной","45",{"v":89.1,"d":"89.10"}]
[null,"Полдник/төштән соңгы аш","Ряженка","180",{"v":91.8,"d":"91.80"}]
[null,"Ужин/кичке аш","Каша гречневая вязкая с мясом и овощами","200",{"v":268.5,"d":"268.50"}]
[null,null,"Напиток из шиповника","180/6",79.38]
[null,null,"Хлеб пшеничный","30",{"v":70.5,"d":"70.50"}]
[{"$nulls":3},"170,64 руб",{"$f":"E27+E26+E25+E24+E23+E22+E21+E20+E19+E18+E17+E16+E15+E14+E13","v":{"v":1674.7199999999996,"d":"1674.72"}}]

{"sheet":"10 апреля","index":65,"n_rows":28,"n_cols":5,"rows_kept":28,"hidden":true}
[]
[null,"Согласно контракту"]
[null,"№2024.617"]
[null,"от 23.12.2023 г."]
[]
[]
[null,null,"4 день"]
[]
[null,"Д/сад","МБДОУ \"ЦРР-д/с № 22\"Алсу\""]
[]
[null,10,"Блюдо","С 3 лет","до 7 лет"]
[{"$nulls":3},"грамм","ккал"]
[null,"Завтрак/иртәнге аш","Каша ячневая молочная с маслом сливочным","180/3",223.41]
[null,null,"Кофейный напиток с молоком","180/6",42.67]
[null,null,"Бутерброд с маслом сливочным, повидлом","30/5/10",{"v":119.8,"d":"119.80"}]
[null,"09.00","Яблоко","100",{"v":47,"d":"47.0"}]
[null,"Обед/төшке аш","Салат из зеленого горошка к/с","50",{"v":41.8,"d":"41.80"}]
[null,null,"Суп картофельный с пшенной крупой ","180",61.74]
[null,null,"птица, тушенная с соусе с овощами","200",{"v":264,"d":"264.00"}]
[null,null,"Компот из сухофруктов","180",{"v":108,"d":"108.00"}]
[null,null,"Хлеб пшеничный","25",58.75]
[null,null,"Хлеб ржаной","45",{"v":89.1,"d":"89.10"}]
[null,"Полдник/төштән соңгы аш","Кефир","180",{"v":90,"d":"90.00"}]
[null,null,"Булочка с сахаром","35",96.57]
[null,"Ужин/кичке аш","Омлет натуральный с сыром","150",289.66]
[null,null,"Чай с сахаром","180/6",{"v":24.1,"d":"24.10"}]
[null,null,"Хлеб пшеничный","30",{"v":70.5,"d":"70.50"}]
[{"$nulls":3},"170,64 руб",{"$f":"E27+E26+E25+E24+E23+E22+E21+E20+E19+E18+E17+E16+E15+E14+E13","v":{"v":1627.1,"d":"1627.10"}}]

{"sheet":"11 апреля","index":66,"n_rows":28,"n_cols":5,"rows_kept":28,"hidden":true}
[]
[null,"Согласно контракту"]
[null,"№2024.617"]
[null,"от 23.12.2023 г."]
[]
[null,null,"5 день"]
[]
[]
[null,"Д/сад","МБДОУ \"ЦРР-д/с № 22\"Алсу\""]
[]
[null,10,"Блюдо","С 3 лет","до 7 лет"]
[{"$nulls":3},"грамм","ккал"]
[null,"Завтрак/иртәнге аш","Суп молочный с вермишелью","200",{"v":120,"d":"120.00"}]
[null,null,"какао с молоком","180",58.83]
[null,null,"Бутерброд с сыром, маслом сливочным","30/5/5",{"v":146.1,"d":"146.10"}]
[null,"09.00","Яблоко","100",{"v":47,"d":"47.0"}]
[null,"Обед/төшке аш","Венегрет овощной","60",75.06]
[null,null,"Суп из овощей с мясными фрикадельками,со сметаной","180/10/7",106.12]
[null,null,"Каша гречневая рассыпчатый с овощами,с маслом слив","130/20",141.96]
[null,null,"Котлеты рубленые из говядины     ","150/30",211.06]
[null,null,"Компот из свеж яблок","180",55.26]
[null,null,"Хлеб пшеничный","25",58.75]
[null,null,"Хлеб ржаной","45",{"v":89.1,"d":"89.10"}]
[null,"Полдник/төштән соңгы аш","Катык","180",{"v":91.8,"d":"91.80"}]
[null,null,"Мармелад","10",{"v":83,"d":"83.00"}]
[null,"Ужин/кичке аш","Элеш с птицей","100",{"v":245,"d":"245.00"}]
[null,null,"Чай с сахаром и лимоном","180/6/7",26.48]
[{"$nulls":3},"170,64 руб",{"$f":"E27+E26+E25+E24+E23+E22+E21+E20+E19+E18+E17+E16+E15+E14+E13","v":1555.52}]

{"sheet":"Лист25","index":67,"n_rows":0,"n_cols":0,"rows_kept":0,"hidden":true}

{"sheet":"4 марта","index":68,"n_rows":31,"n_cols":5,"rows_kept":31,"hidden":true}
[]
[null,"Согласно контракту"]
[null,"№2024.617"]
[null,"от 23.12.2023 г."]
[]
[null,null,"7 день"]
[]
[]
[null,"Д/сад","МБДОУ \"ЦРР-д/с № 22\"Алсу\""]
[]
[null,10,"Блюдо","С 3 лет","до 7 лет"]
[{"$nulls":3},"грамм","ккал"]
[null,"Завтрак/иртәнге аш","Каша кукурузная молочная с маслом сливочным","180/5",274.16]
[null,null,"Кофейный напиток с молоком ","180",42.67]
[null,null,"Бутерброд с маслом сливочным","30/5",{"v":111.6,"d":"111.60"}]
[null,null,"Сыр порционно","10",34.33]
[null,"09.00","Яблоко","100",{"v":47,"d":"47.0"}]
[null,"Обед/төшке аш","Салат из отварной свеклы с маслом растительным","60",{"v":39.9,"d":"39.90"}]
[null,null,"Суп картофельный с клецками на б-не из индейки","180/10",120.08]
[null,null,"Гуляш из отварной индейки","40/40",136.31]
[null,null,"Пюре картофельное","140",{"v":128.1,"d":"128.10"}]
[null,null,"Компот из свежих фруктов","180",55.26]
[null,null,"Хлеб пшеничный","25",58.75]
[null,null,"Хлеб ржаной","45",{"v":89.1,"d":"89.10"}]
[null,"Полдник/төштән соңгы аш","Кефир","180",{"v":90,"d":"90.00"}]
[null,null,"мармелад","10",{"v":83,"d":"83.00"}]
[null,"Ужин/кичке аш","Расстегай с рыбой","100",{"v":325,"d":"325.00"}]
[]
[null,null,"Чай с сахаром и лимоном","180/6/7",26.48]
[]
[{"$nulls":3},"158,45 руб",{"$f":"E29+E27+E26+E25+E24+E23+E21+E20+E19+E18+E17+E15+E14+E13","v":1572.15}]

{"sheet":"17 ноября","index":69,"n_rows":28,"n_cols":5,"rows_kept":28}
[null,"Согласно контракту"]
[null,"№2024.617"]
[null,"от 23.12.2023 г."]
[]
[]
[null,null,"1 день"]
[]
[null,"Д/сад","МБДОУ \"Детский сад \"Солнышко\" с. Ямаши"]
[]
[null,10,"Блюдо","С 3 лет","до 7 лет"]
[{"$nulls":3},"грамм","ккал"]
[null,"Завтрак/иртәнге аш","Каша Геркулесовая молочная с маслом сливочным","180/3",238.71]
[null,null,"Кофейный напиток с молоком","180/6",74.58]
[null,null,"Бутерброд с маслом сливочным,с сыром","30/5/5",128.77]
[null,"09.00","Яблоко","100",{"v":47,"d":"47.0"}]
[null,"Обед/төшке аш","Икра Кабачковая","50",{"v":34.8,"d":"34.80"}]
[null,null,"Суп картофельный с клецками на курином бульоне","180",107.24]
[null,null,"Плов из птицы","200",282.55]
[null,null,"Компот из яблок","180",103.14]
[null,null,"Хлеб ржаной","45",89.19]
[null,null,"Хлеб пшеничный","35",82.25]
[null,"Полдник/төштән соңгы аш","Напиток ацид","180",{"v":92,"d":"92.00"}]
[null,null,"Печенье","20",{"v":83.4,"d":"83.40"}]
[null,"Ужин/кичке аш","Котлеты рыбные ","70",101.72]
[null,null,"Пюре картофельное с маслом","140/3",{"v":147.9,"d":"147.90"}]
[null,null,"Чай с сахаром","180/6",23.94]
[null,null,"Хлеб пшеничный","35",82.25]
[{"$nulls":3},"170,64 руб",{"$f":"E27+E26+E25+E24+E23+E22+E21+E20+E19+E18+E17+E16+E15+E14+E13+E12","v":1719.44}]

{"sheet":"18 ноября","index":70,"n_rows":27,"n_cols":5,"rows_kept":27}
[null,"Согласно контракту"]
[null,"№2024.617"]
[null,"от 23.12.2023 г."]
[]
[null,null,"2 день"]
[]
[]
[null,"Д/сад","МБДОУ \"Детский сад \"Солнышко\" с. Ямаши"]
[]
[null,10,"Блюдо","С 3 лет","до 7 лет"]
[{"$nulls":3},"грамм","ккал"]
[null,"Завтрак/иртәнге аш","Каша пшеничная молочная с маслом сливочным","180/3",241.16]
[null,null,"какао с молоком","180/6",90.78]
[null,null,"Бутерброд с маслом сливочным","30/5",111.68]
[null,"09.00","Сок","200",84.8]
[null,"Обед/төшке аш","Салат из моркови,с сахаром","60",31.38]
[null,null,"Борщ со свежей капустой, картофелем, со сметаной","180/7",85.97]
[null,null,"Гуляш из отварной говядины","40/40",{"v":176.8,"d":"176.80"}]
[null,null,"Каша гречневая рассыпчатая с маслом сливочным","130/3",205.27]
[null,null,"Кисель","180",75.24]
[null,null,"Хлеб пшеничный","35",82.25]
[null,null,"Хлеб ржаной","45",89.19]
[null,"Полдник/төштән соңгы аш","Ряженка","180",{"v":92,"d":"92.00"}]
[null,null,"Вафли","20",{"v":108.5,"d":"108.50"}]
[null,"Ужин/кичке аш","Королевская ватрушка","150",{"v":404,"d":"404.00"}]
[null,null,"Чай с сахаром и лимоном","180/6/7",26.48]
[{"$nulls":3},"170,64 руб",{"$f":"E26+E25+E24+E23+E22+E21+E20+E19+E17+E18+E16+E15+E14+E12+13:13","v":{"v":1905.5000000000002,"d":"1905.50"}}]

{"sheet":"19 ноября","index":71,"n_rows":27,"n_cols":5,"rows_kept":27}
[null,"Согласно контракту"]
[null,"№2024.617"]
[null,"от 23.12.2023 г."]
[]
[null,null,"3 день"]
[]
[]
[null,"Д/сад","МБДОУ \"Детский сад \"Солнышко\" с. Ямаши"]
[]
[null,10,"Блюдо","С 3 лет","до 7 лет"]
[{"$nulls":3},"грамм","ккал"]
[null,"Завтрак/иртәнге аш","Каша Дружба молочная с маслом сливочным","180/3",215.85]
[null,null,"Чай с сахаром и молоком","180/6",75.76]
[null,null,"Бутерброд с маслом сливочным,с сыром","30/5/5",128.77]
[null,"09.00","Фрукт","100",{"v":96,"d":"96.0"}]
[null,"Обед/төшке аш","Салат из капусты с морковью","60",52.44]
[null,null,"Расоольник ленинградский на курином бульоне со сметаной","180/7",198.54]
[null,null,"Гороховое пюре","130",196.94]
[null,null,"Котлеты из мяса птицы с маслом сливочным ","70/2",{"v":167.2,"d":"167.20"}]
[null,null,"Компот из сухофруктов","180",{"v":72,"d":"72.00"}]
[null,null,"Хлеб ржаной","45",89.19]
[null,"Полдник/төштән соңгы аш","Катык","180",{"v":92,"d":"92.00"}]
[null,null,"Сдоба обыкновенная","50",{"v":141,"d":"141.00"}]
[null,"Ужин/кичке аш","Омлет натур","150",289.66]
[null,null,"Напиток из шиповника","180/6",31.38]
[null,null,"Хлеб пшеничный","35",82.25]
[{"$nulls":3},"170,64 руб",{"$f":"E26+E25+E24+E23+E22+E21++E20+E19+E18+E17+E16+E15+E14+E13+E12","v":1928.98}]

{"sheet":"20 ноября","index":72,"n_rows":26,"n_cols":5,"rows_kept":26}
[null,"Согласно контракту"]
[null,"№2024.617"]
[null,"от 23.12.2023 г."]
[]
[]
[null,null,"4 день"]
[]
[null,"Д/сад","МБДОУ \"Детский сад \"Солнышко\" с. Ямаши"]
[]
[null,10,"Блюдо","С 3 лет","до 7 лет"]
[{"$nulls":3},"грамм","ккал"]
[null,"Завтрак/иртәнге аш","Каша ячневая молочная с маслом сливочным","180/3",{"v":214.8,"d":"214.80"}]
[null,null,"Кофейный напиток с молоком","180/6",74.58]
[null,null,"Бутер с маслом слив","30/5",111.68]
[null,"09.00","Сок","200",84.8]
[null,"Обед/төшке аш","Салат из свеклы с яблоками","60",46.02]
[null,null,"Щи со свежей капустой, с картофелем на бульоне из индейки,  со сметаной","180/7",70.02]
[null,null,"индейка тушенная с соусе с овощами по татарски","40/30",150.93]
[null,null,"Макаронные изделия отварные, с маслом сливочным","130/30",165.79]
[null,null,"Компот из урюка","180",{"v":68.2,"d":"68.20"}]
[null,null,"Хлеб пшеничный","35",82.25]
[null,null,"Хлеб ржаной","45",89.19]
[null,"Полдник/төштән соңгы аш","Напиток ацидоф","180",{"v":92,"d":"92.00"}]
[null,"Ужин/кичке аш","Запеканка творожная с молоком сгущенным","130/20",{"v":408.2,"d":"408.20"}]
[null,null,"Чай с сахаром","180/6",{"v":24.1,"d":"24.10"}]
[{"$nulls":3},"170,64руб",{"$f":"+E25+E24+E23+E22+E21+E20+E19+E18+E17+E16+E15+E14+E13+E12","v":1682.56}]

{"sheet":"21 ноября","index":73,"n_rows":28,"n_cols":5,"rows_kept":28}
[null,"Согласно контракту"]
[null,"№2024.617"]
[null,"от 23.12.2023 г."]
[]
[null,null,"5 день"]
[]
[]
[null,"Д/сад","МБДОУ \"Детский сад \"Солнышко\" с. Ямаши"]
[]
[null,10,"Блюдо","С 3 лет","до 7 лет"]
[{"$nulls":3},"грамм","ккал"]
[null,"Завтрак/иртәнге аш","Каша жидкая молочная гречневая,  с маслом сливочным","180,3",{"v":225.9,"d":"225.90"}]
[null,null,"Чай без сахара, с мармеладом","180/20",96.3]
[null,null,"Бутерброд с сыром, маслом сливочным","30/5/5",128.77]
[null,"09.00","Яблоко","100",{"v":47,"d":"47.0"}]
[null,"Обед/төшке аш","Салат из моркови с сахаром ","60",31.38]
[null,null,"Суп гороховый с картофелем, с мясными фрикадельками","180/10",126.35]
[null,null,"Тефтели мясные","70",129.44]
[null,null,"Рагу из овощей","150",202.86]
[null,null,"Компот из свежих фруктов","180",39.47]
[null,null,"Хлеб ржаной","45",89.19]
[null,"Полдник/төштән соңгы аш","Ряженка","180",{"v":92,"d":"92.00"}]
[null,null,"Сушка","20",{"v":66.2,"d":"66.20"}]
[null,"Ужин/кичке аш","Рыба, тушеная с овощами ","50/25",{"v":105,"d":"105.00"}]
[null,null,"Пюре картофельное","140",{"v":128.1,"d":"128.10"}]
[null,null,"Хлеб пшеничный","35",82.25]
[null,null,"Чай с сахаром и лимоном","180/6/7",26.48]
[{"$nulls":3},"170,64 руб",{"$f":"E27+E26+E25+E24+E23+E22+E21+E20+E19+E17+E12+E18+E16+E15+E14+E13","v":{"v":1616.6900000000003,"d":"1616.69"}}]

{"sheet":"24 ноября","index":74,"n_rows":26,"n_cols":5,"rows_kept":26}
[null,"Согласно контракту"]
[null,"№2024.617"]
[null,"от 23.12.2023 г."]
[]
[]
[null,null,"6 день"]
[]
[null,"Д/сад","МБДОУ \"Детский сад \"Солнышко\" с. Ямаши"]
[]
[null,10,"Блюдо","С 3 лет","до 7 лет"]
[{"$nulls":3},"грамм","ккал"]
[null,"Завтрак/иртәнге аш","Каша манная молочная с маслом сливочным","180/3",{"v":186.3,"d":"186.30"}]
[null,null,"Чай с молоком и сахаром","180/6",75.76]
[null,null,"Бутерброд с маслом сливочным","30/5",111.68]
[null,"09.00","Сок","200",84.8]
[null,"Обед/төшке аш","Салат из кукурузы к/с","50",49.65]
[null,null,"Суп вермишелевый с картофелем с куриными фрикадельками","180/10",114.56]
[null,null,"Голубцы ленивые со сметанно-томатным соусом","120/30",201.98]
[null,null,"Напиток из сухофруктов","180",71.52]
[null,null,"Хлеб ржаной","45",89.19]
[null,"Полдник/төштән соңгы аш","Катык","180",{"v":92,"d":"92.00"}]
[null,null,"Печенье","40",{"v":166.8,"d":"166.80"}]
[null,"Ужин/кичке аш","Омлет","150",289.66]
[null,null,"Хлеб пшеничный","25",58.81]
[null,null,"Чай с сахаром,с яблоками","180/6",{"v":28.7,"d":"28.70"}]
[{"$nulls":3},"170,64 руб",{"$f":"E25+E24+E23+E22+E21+E20+E19+E18+E17+E16+E15+E14+E13+E12","v":1621.41}]

{"sheet":"25 ноября","index":75,"n_rows":24,"n_cols":5,"rows_kept":24}
[]
[null,null,"7 день"]
[]
[]
[null,"Д/сад","МБДОУ \"Детский сад \"Солнышко\" с. Ямаши"]
[]
[null,10,"Блюдо","С 3 лет","до 7 лет"]
[{"$nulls":3},"грамм","ккал"]
[null,"Завтрак/иртәнге аш","Каша ячневая молочная с маслом слив","180/3",{"v":214.8,"d":"214.80"}]
[null,null,"Кофейный напиток с молоком ","180/6",74.58]
[null,null,"Бутерброд с маслом слив и сыр","30/5/5",128.77]
[null,"09.00","Яблоко","100",{"v":47,"d":"47.0"}]
[null,"Обед/төшке аш","Салат из квашенной капусты","50",42.85]
[null,null,"Борщ со свежей капустой с картофелем на курином бульоне со сметаной","180/7",85.97]
[null,null,"Гуляш из отварной птицы","40/40",123.51]
[null,null,"Макаронные изделия отварные с маслом сливочным","130/3",165.79]
[null,null,"Компот из свежих яблок","180",103.14]
[null,null,"Хлеб пшеничный","30",70.57]
[null,null,"Хлеб ржаной","45",89.19]
[null,"Полдник/төштән соңгы аш","Напиток ацидоф","180",{"v":92,"d":"92.00"}]
[null,"Ужин/кичке аш","Расстегай с рыбой","100",{"v":220,"d":"220.00"}]
[null,null,"Напиток из шиповника","180/6",31.38]
[]
[{"$nulls":3},"170,64",{"$f":"E22+E21+E20+E19+E18+E17+E16+E15+E14+E13+E12+E11+E10+E9","v":{"v":1489.5499999999997,"d":"1489.55"}}]

{"sheet":"26 ноября","index":76,"n_rows":26,"n_cols":5,"rows_kept":26}
[]
[null,"от 23.12.2023 г."]
[]
[]
[null,null,"8 день"]
[]
[null,"Д/сад","МБДОУ \"Детский сад \"Солнышко\" с. Ямаши"]
[]
[null,10,"Блюдо","С 3 лет","до 7 лет"]
[{"$nulls":3},"грамм","ккал"]
[null,"Завтрак/иртәнге аш","Каша геркулесовая молочная с маслом сливочным","180/3",238.71]
[null,null,"Какао с молоком","180/6",90.78]
[null,null,"Бутерброд с маслом сливочным","30/5",111.68]
[null,"09.00","Сок","200",84.8]
[null,"Обед/төшке аш","Винегрет","60",75.06]
[null,null,"Щи со свежей капустой с картофелем, со сметаной","180/10/7",{"v":84.8,"d":"84.80"}]
[null,null,"Тефтели мясные","60/20",125.85]
[null,null,"Каша гречневая рассыпчатая с маслом сливочным","130/3",205.27]
[null,null,"Компот из урюка","180",{"v":68.2,"d":"68.20"}]
[null,null,"Хлеб пшеничный","30",70.57]
[null,null,"Хлеб ржаной","45",89.19]
[null,"Полдник/төштән соңгы аш","Ряженка","180",{"v":92,"d":"92.00"}]
[null,null,"Сушки","20",{"v":67.8,"d":"67.80"}]
[null,"Ужин/кичке аш","Пудинг творожный запеченный с повидлом","130/20",{"v":360.2,"d":"360.20"}]
[null,null,"Чай с сахаром","180/6",{"v":24.1,"d":"24.10"}]
[{"$nulls":3},"170,64 руб",{"$f":"+E25+E24+E23+E22+E21+E20+E19+E18+E17+E16+E15+E14+E13+E12+E11","v":{"v":1789.0099999999998,"d":"1789.01"}}]

{"sheet":"27 ноября","index":77,"n_rows":27,"n_cols":5,"rows_kept":27}
[null,"Согласно контракту"]
[null,"№2024.617"]
[null,"от 23.12.2023 г."]
[]
[]
[null,null,"9 день"]
[]
[null,"Д/сад","МБДОУ \"Детский сад \"Солнышко\" с. Ямаши"]
[]
[null,10,"Блюдо","С 3 лет","до 7 лет"]
[{"$nulls":3},"грамм","ккал"]
[null,"Завтрак/иртәнге аш","Каша пшенная молочная с маслом сливочным","180/3",184.24]
[null,null,"Чай с молоком и сахаром","180/6",75.76]
[null,null,"Бутерброд с  маслом сливочным,с сыром","30/5/5",128.77]
[null,"09.00","Апельсин","100",{"v":43,"d":"43.0"}]
[null,"Обед/төшке аш","салат из моркови с сахаром","60",31.38]
[null,null,"суп лапша домашняя на курином б-не, с мясом птицы","180/10",109.54]
[null,null,"Пюре картофельное","140",{"v":128.1,"d":"128.10"}]
[null,null,"Рыба тушеная с овощами","50/25",{"v":105,"d":"105.00"}]
[null,null,"Напиток из сухофруктов","180",71.52]
[null,null,"Хлеб пшеничный","30",70.57]
[null,null,"Хлеб ржаной","45",89.19]
[null,"Полдник/төштән соңгы аш","кисломолочный напиток","180",{"v":92,"d":"92.00"}]
[null,"Ужин/кичке аш","Вак балиш с рисом и мясом","150",234.63]
[null,null,"чай с сахаром и лимоном","180/6/7",26.48]
[]
[{"$nulls":3},"170,64 руб",{"$f":"E25+E24+E23+E22+E21+E20+E19+E18+E17+E16+E15+E14+E13+E12","v":1390.18}]

{"sheet":"28 ноября","index":78,"n_rows":27,"n_cols":5,"rows_kept":27}
[]
[null,"Согласно контракту"]
[null,"№2024.617"]
[null,"от 23.12.2023 г."]
[]
[null,null,"10 день"]
[]
[]
[null,"Д/сад","МБДОУ \"Детский сад \"Солнышко\" с. Ямаши"]
[]
[null,10,"Блюдо","С 3 лет","до 7 лет"]
[{"$nulls":3},"грамм","ккал"]
[null,"Завтрак/иртәнге аш","Каша рисовая молочная с маслом сливочным","180/3",{"v":225,"d":"225.00"}]
[null,null,"Чай с сахаром, с яблоком","180/6/10",28.7]
[null,null,"Бутербр с маслом слив, с сыром","30/5",111.68]
[null,"09.00","Сок","200",84.8]
[null,"Обед/төшке аш","Салат из зеленого горошка к/с","50",{"v":41.8,"d":"41.80"}]
[null,null,"Суп картофельный с пшенной крупой на курином бульоне","180/10/5",51.45]
[null,null,"Жаркое по - домашнему из отварной птицы","200",{"v":236.2,"d":"236.20"}]
[null,null,"Компот из фруктов","180",39.47]
[null,null,"хлеб пшеничный","30",70.57]
[null,null,"Хлеб ржаной","45",89.19]
[null,"Полдник/төштән соңгы аш","Кефир","185",{"v":90,"d":"90.00"}]
[null,null,"Пряники","35",{"v":128.1,"d":"128.10"}]
[null,"Ужин/кичке аш","Сырники из творога с повидлом","120/30",{"v":379.8,"d":"379.80"}]
[null,null,"Напиток из шиповника","180/6",31.38]
[{"$nulls":3},"170,64  руб",{"$f":"E26+E25+E24+E23+E22+E21+E20+E19+E18+E17+E16+E15+E14+E13","v":1608.14}]

{"sheet":"ноябрь","index":79,"n_rows":28,"n_cols":5,"rows_kept":28,"hidden":true}
[]
[null,"Согласно контракту"]
[null,"№2024.617"]
[null,"от 23.12.2023 г."]
[]
[null,null,"2 день"]
[]
[]
[null,"Д/сад","МБДОУ \"ЦРР-д/с № 22\"Алсу\""]
[]
[null,10,"Блюдо","С 3 лет","до 7 лет"]
[{"$nulls":3},"грамм","ккал"]
[null,"Завтрак/иртәнге аш","Каша полбяная молочная с маслом сливочным","180/3",202.64]
[null,null,"какао с молоком","180/6",58.83]
[null,null,"Бутерброд с сыром, маслом сливочным","30/10/5",{"v":146.1,"d":"146.10"}]
[null,"09.00","Сок","180",{"v":76,"d":"76.0"}]
[null,"Обед/төшке аш","Салат из картофеля с солеными огурцами","60",66.84]
[null,null,"Борщ со свежей капустой, картофелем, со сметаной","180/10/7",87.64]
[null,null,"Тефтели куриные в сметанно-томатномсоусе","50/25",{"v":112.5,"d":"112.50"}]
[null,null,"Макароны отварны с маслом сливочным","130/3",155.22]
[null,null,"Компот из свежих яблок","180",55.26]
[null,null,"Хлеб пшеничный","25",58.75]
[null,null,"Хлеб ржаной","45",{"v":89.1,"d":"89.10"}]
[null,"Полдник/төштән соңгы аш","Молоко кипяченное","180",{"v":96.3,"d":"96.30"}]
[null,null,"Печенье","20",{"v":90.2,"d":"90.20"}]
[null,"Ужин/кичке аш","Запеканка творожная с повидлом","120/30",{"v":418.5,"d":"418.50"}]
[null,null,"Чай с сахаром и лимоном","180/6/7",26.48]
[{"$nulls":3},"170,64 руб",{"$f":"E27+E26+E25+E24+E23+E22+E21+E20+E18+E19+E17+E16+E15+E13+14:14","v":{"v":1740.3599999999997,"d":"1740.36"}}]

{"sheet":"9 октября","index":80,"n_rows":26,"n_cols":5,"rows_kept":26,"hidden":true}
[null,"Согласно контракту"]
[null,"№2024.617"]
[null,"от 23.12.2023 г."]
[]
[]
[null,null,"4 день"]
[]
[null,"Д/сад","МБДОУ \"ЦРР-д/с № 22\"Алсу\""]
[]
[null,10,"Блюдо","С 3 лет","до 7 лет"]
[{"$nulls":3},"грамм","ккал"]
[null,"Завтрак/иртәнге аш","Каша ячневая молочная с маслом сливочным","180/3",223.41]
[null,null,"Кофейный напиток с молоком","180/6",42.67]
[null,null,"Бутер с маслом слив,с повидлом","30/5/10",{"v":119.8,"d":"119.80"}]
[null,"09.00","Сок","100",{"v":76,"d":"76.0"}]
[null,"Обед/төшке аш","Огурцы свежие порционно","50",{"v":41.8,"d":"41.80"}]
[null,null,"Суп картофельный с пшенной крупой на курином б-не","180",61.74]
[null,null,"птица, тушенная с соусе с овощами","200",{"v":264,"d":"264.00"}]
[null,null,"Компот из сухофруктов","180",68.18]
[null,null,"Хлеб пшеничный","25",58.75]
[null,null,"Хлеб ржаной","45",{"v":89.1,"d":"89.10"}]
[null,"Полдник/төштән соңгы аш","Катык","180",{"v":102,"d":"102.00"}]
[null,"Ужин/кичке аш","Омлет натуральный с сыром","150",289.66]
[null,null,"Чай с сахаром","180/6",{"v":24.1,"d":"24.10"}]
[null,null,"Хлеб пшеничный","30",{"v":70.5,"d":"70.50"}]
[{"$nulls":3},"170,64руб",{"$f":"E25+E24+E23+E22+E21+E20+E19+E18+E17+E16+E15+E14+E13+E12","v":1531.71}]

{"sheet":"Лист27","index":81,"n_rows":0,"n_cols":0,"rows_kept":0,"hidden":true}

{"sheet":"Лист31","index":82,"n_rows":0,"n_cols":0,"rows_kept":0,"hidden":true}

{"sheet":"2 июня","index":83,"n_rows":30,"n_cols":5,"rows_kept":30,"hidden":true}
[]
[null,"Согласно контракту"]
[null,"№2024.617"]
[null,"от 23.12.2023 г."]
[]
[]
[null,null,"1 день"]
[]
[null,"Д/сад","МБДОУ \"ЦРР-д/с № 22\"Алсу\""]
[]
[null,10,"Блюдо","С 3 лет","до 7 лет"]
[{"$nulls":3},"грамм","ккал"]
[null,"Завтрак/иртәнге аш","Каша Дружба молочная с маслом сливочным","180/5",{"v":225,"d":"225.00"}]
[null,null,"Кофейный напиток с молоком","180/6",42.67]
[null,null,"Бутерброд с маслом сливочным","30/5",{"v":111.6,"d":"111.60"}]
[null,"09.00","Яблоко","100",{"v":47,"d":"47.0"}]
[null,"Обед/төшке аш","Икра морковная","50",{"v":45.6,"d":"45.60"}]
[null,null,"Суп вермишелевый с картофелем с мясными фрикадельками","180/15",114.56]
[null,null,"Голубцы ленивые со сметанно-томатным соусом","120/30",201.98]
[null,null,"Напиток из сухофруктов","180",68.18]
[null,null,"Хлеб ржаной","45",{"v":89.1,"d":"89.10"}]
[null,null,"Хлеб пшеничный","25",58.75]
[null,"Полдник/төштән соңгы аш","Кефир","180",{"v":90,"d":"90.00"}]
[null,null,"Вафли","20",{"v":192,"d":"192.00"}]
[null,"Ужин/кичке аш","Котлеты рыбные ","70",124.56]
[null,null,"Пюре картофельное","140",{"v":128.1,"d":"128.10"}]
[null,null,"Чай с сахаром","180/6",{"v":24.1,"d":"24.10"}]
[null,null,"Хлеб пшеничный","30",{"v":70.5,"d":"70.50"}]
[{"$nulls":3},"170,64 руб",{"$f":"E28+E27+E26+E25+E24+E23+E22+E21+E20+E19+E18+E17+E16+E15+E14+E13","v":{"v":1633.6999999999998,"d":"1633.70"}}]
[{"$nulls":3}," "]

{"sheet":"30 май","index":84,"n_rows":25,"n_cols":5,"rows_kept":25,"hidden":true}
[null,"от 23.12.2023 г."]
[]
[null,null,"2 день"]
[]
[]
[null,"Д/сад","МБДОУ \"ЦРР-д/с № 22\"Алсу\""]
[]
[null,10,"Блюдо","С 3 лет","до 7 лет"]
[{"$nulls":3},"грамм","ккал"]
[null,"Завтрак/иртәнге аш","Каша полбяная молочная с маслом сливочным","180/3",202.64]
[null,null,"какао с молоком","180/6",58.83]
[null,null,"Бутерброд с сыром, маслом сливочным","30/10/5",{"v":146.1,"d":"146.10"}]
[null,"09.00","Сок","180",{"v":76,"d":"76.0"}]
[null,"Обед/төшке аш","Салат из картофеля с солеными огурцами","60",66.84]
[null,null,"Борщ со свежей капустой, картофелем, со сметаной","180/10/7",87.64]
[null,null,"Тефтели куриные в сметанно-томатномсоусе","50/25",{"v":112.5,"d":"112.50"}]
[null,null,"Макароны отварны с маслом сливочным","130/3",155.22]
[null,null,"Компот из свежих яблок","180",55.26]
[null,null,"Хлеб пшеничный","25",58.75]
[null,null,"Хлеб ржаной","45",{"v":89.1,"d":"89.10"}]
[null,"Полдник/төштән соңгы аш","Молоко кипяченное","180",{"v":96.3,"d":"96.30"}]
[null,null,"Печенье","20",{"v":90.2,"d":"90.20"}]
[null,"Ужин/кичке аш","Запеканка творожная с повидлом","120/30",{"v":418.5,"d":"418.50"}]
[null,null,"Чай с сахаром и лимоном","180/6/7",26.48]
[{"$nulls":3},"170,64 руб",{"$f":"E24+E23+E22+E21+E20+E19+E18+E17+E15+E16+E14+E13+E12+E10+11:11","v":{"v":1740.3599999999997,"d":"1740.36"}}]

{"sheet":"23 сентября","index":85,"n_rows":28,"n_cols":5,"rows_kept":28,"hidden":true}
[]
[null,"Согласно контракту"]
[null,"№2024.617"]
[null,"от 23.12.2023 г."]
[]
[]
[null,null,"6 день"]
[]
[null,"Д/сад","МБДОУ \"ЦРР-д/с № 22\"Алсу\""]
[]
[null,10,"Блюдо","С 3 лет","до 7 лет"]
[{"$nulls":3},"грамм","ккал"]
[null,"Завтрак/иртәнге аш","Каша пшенная молочная с маслом сливочным","180/3",208.76]
[null,null,"Чай с молоком и сахаром","180/6",75.76]
[null,null,"Бутерброд с маслом сливочным","30/5",{"v":111.6,"d":"111.60"}]
[null,"09.00","Сок","180",94.4]
[null,"Обед/төшке аш","Салат из моркови","60",24.24]
[null,null,"Суп из овощей на курином б-не, с мясными фрикадельками, со сметаной","180/11/7",101.49]
[null,null,"Ежики куриные в сметанно-томатномном соусе","50/25",123.03]
[null,null,"вермишель отварной","130",135.46]
[null,null,"Напиток из сухофруктов","180",{"v":87.5,"d":"87.50"}]
[null,null,"Хлеб пшеничный","25",58.75]
[null,null,"Хлеб ржаной","45",{"v":89.1,"d":"89.10"}]
[null,"Полдник/төштән соңгы аш","Катык","180",91.86]
[null,null,"Булочка с сахаром","50",170.67]
[null,"Ужин/кичке аш","Запеканка творожная с повидлом","120/30",{"v":418.5,"d":"418.50"}]
[null,null,"Напиок из шиповника","180/5",{"v":24.1,"d":"24.10"}]
[{"$nulls":3},"152,36 руб",{"$f":"E27+E26+E25+E24+E23+E22+E20+E19+E18+E17+E16+E15+E14+E13","v":1727.72}]

{"sheet":"24 сентября","index":86,"n_rows":31,"n_cols":5,"rows_kept":31,"hidden":true}
[]
[null,"Согласно контракту"]
[null,"№2024.617"]
[null,"от 23.12.2023 г."]
[]
[null,null,"7 день"]
[]
[]
[null,"Д/сад","МБДОУ \"ЦРР-д/с № 22\"Алсу\""]
[]
[null,10,"Блюдо","С 3 лет","до 7 лет"]
[{"$nulls":3},"грамм","ккал"]
[null,"Завтрак/иртәнге аш","Каша кукурузная молочная с маслом сливочным","180/5",274.16]
[null,null,"Кофейный напиток с молоком ","180",42.67]
[null,null,"Бутерброд с маслом сливочным","30/5",{"v":111.6,"d":"111.60"}]
[null,null,"Сыр порционно","10",34.33]
[null,"09.00","Сок","180",94.4]
[null,"Обед/төшке аш","Салат из отварной свеклы с маслом расстительным","60",53.88]
[null,null,"Суп картофельный с клецками на мясном б-не с мясом","180/10",121.66]
[null,null,"Гуляш из отварной говядины","40/40",{"v":131.2,"d":"131.20"}]
[null,null,"Пюре картофельное","140",{"v":128.1,"d":"128.10"}]
[null,null,"Компот из свежих фруктов","180",55.26]
[null,null,"Хлеб пшеничный","25",58.75]
[null,null,"Хлеб ржаной","45",{"v":89.1,"d":"89.10"}]
[null,"Полдник/төштән соңгы аш","Кефир","180",{"v":90,"d":"90.00"}]
[null,null,"мармелад","10",{"v":83,"d":"83.00"}]
[null,"Ужин/кичке аш","Расстегай с рыбой","100",{"v":420,"d":"420.00"}]
[]
[null,null,"Чай с сахаром и лимоном","180/6/7",26.48]
[]
[{"$nulls":3},"152,36 руб",{"$f":"E29+E27+E26+E25+E24+E23+E21+E20+E19+E18+E17+E15+E14+E13","v":{"v":1725.0000000000005,"d":"1725.00"}}]

{"sheet":"25 сентября","index":87,"n_rows":29,"n_cols":5,"rows_kept":29,"hidden":true}
[]
[null,"Согласно контракту"]
[null,"№2024.617"]
[null,"от 23.12.2023 г."]
[]
[]
[null,null,"8 день"]
[]
[null,"Д/сад","МБДОУ \"ЦРР-д/с № 22\"Алсу\""]
[]
[null,10,"Блюдо","С 3 лет","до 7 лет"]
[{"$nulls":3},"грамм","ккал"]
[null,"Завтрак/иртәнге аш","Каша манная молочная с маслом сливочным","180/5",{"v":199.5,"d":"199.50"}]
[null,null,"Какао с молоком ","180/6",58.83]
[null,null,"Бутерброд с маслом сливочным","30/5",{"v":111.6,"d":"111.60"}]
[null,"09.00","Сок","180",97.4]
[null,"Обед/төшке аш","Помидоры свежие","60",{"v":14.3,"d":"14.30"}]
[null,null,"Щи со свежей капустой с картофелем на курином б-не, с куриными фрикадельками и со сметаной","180/11/7",104.59]
[null,null,"Биточки домашние","70",{"v":225.4,"d":"225.40"}]
[null,null,"Рис отварной рассыпчатый с маслом сливочным","130/20",192.01]
[null,null,"Компот из изюма","180",{"v":62.1,"d":"62.10"}]
[null,null,"Хлеб пшеничный","25",58.75]
[null,null,"Хлеб ржаной","45",{"v":89.1,"d":"89.10"}]
[null,"Полдник/төштән соңгы аш","Молоко кипяченое","180",{"v":96.3,"d":"96.30"}]
[null,null,"Кондитерские изделия (печенье)","20",{"v":90.2,"d":"90.20"}]
[null,"Ужин/кичке аш","Омлет натуральный","150",335.23]
[null,null,"Чай с сахаром","180/6",{"v":24.1,"d":"24.10"}]
[null,null,"Хлеб пшеничный","30",{"v":70.5,"d":"70.50"}]
[{"$nulls":3},"152,36 руб",{"$f":"E27+E26+E25+E24+E23+E22+E20+E19+E18+E17+E16+E15+E14+E13","v":1697.31}]

{"sheet":"2 сентября","index":88,"n_rows":30,"n_cols":5,"rows_kept":30,"hidden":true}
[]
[null,"Согласно контракту"]
[null,"№2024.617"]
[null,"от 23.12.2023 г."]
[]
[]
[null,null,"1 день"]
[]
[null,"Д/сад","МБДОУ \"ЦРР-д/с № 22\"Алсу\""]
[]
[null,10,"Блюдо","С 3 лет","до 7 лет"]
[{"$nulls":3},"грамм","ккал"]
[null,"Завтрак/иртәнге аш","Каша Дружба молочная с маслом сливочным","180/5",{"v":207.6,"d":"207.60"}]
[null,null,"Кофейный напиток с молоком","180/6",42.67]
[null,null,"Бутерброд с маслом сливочным","30/5",{"v":111.6,"d":"111.60"}]
[null,"09.00","Яблоко","100",{"v":47,"d":"47.0"}]
[null,"Обед/төшке аш","Салат из моркови","60",{"v":34.8,"d":"34.80"}]
[null,null,"Суп вермишелевый с картофелем с мясными фрикадельками","180/15",114.56]
[null,null,"Котлеты рубленные из говядины","70",211.06]
[null,null,"Каша гречневая вязкая с маслом сливочным","130/3",145.86]
[null,null,"Напиток из сухофруктов","180",68.18]
[null,null,"Хлеб ржаной","45",{"v":89.1,"d":"89.10"}]
[null,null,"Хлеб пшеничный","25",58.75]
[null,"Полдник/төштән соңгы аш","Кефир","180",{"v":90,"d":"90.00"}]
[null,null,"Вафли","20",{"v":192,"d":"192.00"}]
[null,"Ужин/кичке аш","Котлеты рыбные ","70",124.56]
[null,null,"Пюре картофельное","140",{"v":128.1,"d":"128.10"}]
[null,null,"Чай с сахаром","180/6",{"v":24.1,"d":"24.10"}]
[null,null,"Хлеб пшеничный","30",{"v":70.5,"d":"70.50"}]
[{"$nulls":3},"152,36 руб",{"$f":"E29+E28+E27+E26+E25+E24+E23+E22+E21+E20+E19+E18+E17+E16+E15+E14+E13","v":{"v":1760.4399999999998,"d":"1760.44"}}]

{"sheet":"1 апреля ","index":89,"n_rows":29,"n_cols":5,"rows_kept":29,"hidden":true}
[]
[null,"Согласно контракту"]
[null,"№2024.617"]
[null,"от 23.12.2023 г."]
[]
[null,null,"10 день"]
[]
[]
[null,"Д/сад","МБДОУ \"ЦРР-д/с № 22\"Алсу\"","День","2024-04-01"]
[]
[null,10,"Блюдо","С 3 лет","до 7 лет"]
[{"$nulls":3},"грамм","ккал"]
[null,"Завтрак/иртәнге аш","Каша геркулесовая молочная с маслом сливочным","180/5",251.91]
[null,null,"Кофейный напиток с молоком","180/6",42.67]
[null,null,"Бутерброд с маслом сливочным","30/5",{"v":111.6,"d":"111.60"}]
[null,"09.00","апельсин","100",{"v":47,"d":"47.0"}]
[null,"Обед/төшке аш","Салат из свеклы с сыром","60",78.42]
[null,null,"Рассольник ленинградский с куриными фрикадельками, со сметаной","180/11/7",117.51]
[null,null,"Котлеты рыбные с маслом сливочным","70/3",144.36]
[null,null,"Макаронные изделия отварные с овощами","130",163.28]
[null,null,"Кисель","180",75.24]
[null,null,"хлеб пшеничный","25",58.75]
[null,null,"Хлеб ржаной","45",{"v":89.1,"d":"89.10"}]
[null,"Полдник/төштән соңгы аш","Молоко кипяченое","180",{"v":96.3,"d":"96.30"}]
[null,null,"Кондитерские изделия (печенье)","20",{"v":90.2,"d":"90.20"}]
[null,"Ужин/кичке аш","Капуста тушеная с мясом ","180",{"v":250.3,"d":"250.30"}]
[null,null,"Напиток из шиповника","180/6",79.38]
[null,null,"Хлеб пшеничный","30",{"v":70.5,"d":"70.50"}]
[{"$nulls":3},"152,36 руб",{"$f":"E28+E27+E26+E25+E24+E23+E22+E21+E20+E19+E18+E17+E16+E15+E14+E13","v":1766.52}]

{"sheet":"2 апреля","index":90,"n_rows":28,"n_cols":5,"rows_kept":28,"hidden":true}
[]
[null,"Согласно контракту"]
[null,"№2024.617"]
[null,"от 23.12.2023 г."]
[]
[null,null,"2 день"]
[]
[]
[null,"Д/сад","МБДОУ \"ЦРР-д/с № 22\"Алсу\"","День","2024-03-02"]
[]
[null,10,"Блюдо","С 3 лет","до 7 лет"]
[{"$nulls":3},"грамм","ккал"]
[null,"Завтрак/иртәнге аш","Каша полбяная молочная с маслом сливочным","180/3",202.64]
[null,null,"какао с молоком","180",58.83]
[null,null,"Бутерброд с сыром, маслом сливочным","30/5/5",128.77]
[null,"09.00","Сок","180",94.4]
[null,"Обед/төшке аш","Салат из картофеля с солеными огурцами","60",66.84]
[null,null,"Борщ со свежей капустой, картофелем на курином б-не, с куриными фрикадельками, со сметаной","180/10/7",106.63]
[null,null,"Фрикадельки куриные в молочном соусе","50/25",{"v":136.3,"d":"136.30"}]
[null,null,"Макароны отварны с маслом сливочным","130/3",155.22]
[null,null,"Компот из свежих яблок","180",55.26]
[null,null,"Хлеб пшеничный","25",58.75]
[null,null,"Хлеб ржаной","45",{"v":89.1,"d":"89.10"}]
[null,"Полдник/төштән соңгы аш","Ряженка","180",{"v":91.8,"d":"91.80"}]
[null,null,"Булочка дорожная","50",{"v":165.5,"d":"165.50"}]
[null,"Ужин/кичке аш","Запеканка творожная с повидлом","120/30",{"v":418.5,"d":"418.50"}]
[null,null,"Чай с сахаром и лимоном","180/6/7",26.48]
[{"$nulls":3},"152,36 руб",{"$f":"E27+E26+E25+E24+E23+E22+E21+E20+E18+E19+E17+E16+E15+E14","v":{"v":1652.3799999999997,"d":"1652.38"}}]